Cogmind - Beta 15 @@@ ROGUE MODE // 2025.07.14 @ 10:43:43 Player: Dosh Result: Destroyed by Decapitator with Experimental Terror Saw Performance ------------- Evolutions (8) 4000 Regions Visited (38) 7600 Robots Destroyed (464) 2320 Value Destroyed (27222) 27222 Prototype IDs (158) 3160 Alien Tech Used (1) 200 Bonus (29048) 29048 TOTAL SCORE: 73550 Bonus ------- High Alert Combat Kills 1122 Follower Combat Kills 16426 Entered Garrisons 1800 Used RIF Installer 6000 Network Hubs Disabled 600 Aligned with FarCom 300 Built Enhanced Grunts 300 Met R17 at Cetus 500 Met R17 at Research 2000 Cogmind --------- Core Integrity 0/1450 Matter 280/300 Energy 44/100 System Corruption 35% Temperature Cool (0) Movement Core (50) Location -2/Protoforge Parts ------- > --- POWER (3) -------- (None) > --- PROPULSION (6) --- (None) > --- UTILITY (12) ----- Experimental Targeting Computer Graphene Brace Relay Coupler [C] (32) Relay Coupler [Sentry] (40) Relay Coupler [Proto] (21) Relay Coupler [Proto] (21) Relay Coupler [Proto] (1) Relay Coupler [Proto] (21) Relay Coupler [Proto] (22) Relay Coupler [Proto] (21) > --- WEAPON (2) ------- (None) > --- INVENTORY (5) ---- Biometal Heavy Treads Relay Coupler [NC] (50) Peak State ------------ > --- POWER ------------ Improved Quantum Reactor Improved Quantum Reactor Improved Quantum Reactor > --- PROPULSION ------- Improved Heavy Treads Advanced Heavy Treads Biometal Heavy Treads > --- UTILITY ---------- 2N-1CE's Frost Array Cargo Storage Unit Experimental Targeting Computer Precision Energy Filter Layered Heavy Armor Plating Improved Remote Force Field Relay Coupler [NC] Relay Coupler [C] Relay Coupler [Sentry] Relay Coupler [Proto] > --- WEAPON ----------- Core Cannon > --- INVENTORY -------- Quantum Reactor Advanced Cooling System Quantum Capacitor Graphene Brace Experimental EM Shield Experimental Force Field System Mapper Relay Coupler [NC] Relay Coupler [C] Relay Coupler [C] Relay Coupler [Sentry] Relay Coupler [Proto] Relay Coupler [Proto] Relay Coupler [Proto] Relay Coupler [Proto] Relay Coupler [Proto] Relay Coupler [Proto] Relay Coupler [Proto] Relay Coupler [Proto] Relay Coupler [Proto] Relay Coupler [Proto] Subatomic Replicator Compact HERF Cannon Compact HERF Cannon Advanced Plasma Cannon Matter Neutralizer Improved Datajack [Rating: 194] Favorites ----------- Power Quantum Reactor Engine F-cell Engine Power Core Enhanced Fission Core Reactor Quantum Reactor Propulsion Improved Heavy Treads Treads Improved Heavy Treads Leg Biometal Leg Flight Unit Experimental Surge Thruster Utility Huge Storage Unit Device Experimental Heat Sink Storage Huge Storage Unit Processor Experimental Targeting Computer Hackware Relay Coupler [Sentry] Protection Reactive Plating Weapon Advanced Plasma Cannon Energy Gun Wave Gun Energy Cannon Advanced Plasma Cannon Ballistic Gun Enhanced Autogun Ballistic Cannon Heavy Linear Accelerator Launcher Rocket Launcher Special Weapon Advanced Remote Datajack Slashing Weapon Longsword +1 Special Melee Weapon Improved Datajack Build | -11 -10 -10 -9 -9 -9 -8 -8 -8 -8 -8 -7 -7 -7 -7 -7 -6 -6 -6 -6 -6 -6 -6 -5 -5 -5 -5 -5 -5 -4 -4 -4 -4 -3 -3 -3 -2 -2 -2 ------- Run | Yrd Mat Min Mat Min Exi Min Mat Gar Mat Gar Fac Was Fac Gar Sto Fac Gar Fac Ext Cet Arc Hub Fac Was Fac Gar Fac Gar Fac Gar Fac Gar Res Qua Gar Res Tes Frg Slots Evolved 16 | . . . 2 . . . 2 . . . 2 . . . . 2 . . . . . . 2 . . . . . 2 . . . 2 . . 2 . . Power 2 | . . . . . . . . . . . . . . . . 1 . . . . . . . . . . . . . . . . . . . 1 . . Propulsion 4 | . . . 1 . . . . . . . 1 . . . . . . . . . . . . . . . . . 1 . . . 1 . . . . . Utility 10 | . . . 1 . . . 2 . . . 1 . . . . 1 . . . . . . 2 . . . . . 1 . . . 1 . . 1 . . Weapon . | . . . . . . . . . . . . . . . . . . . . . . . . . . . . . . . . . . . . . . . Parts Attached 389 | 5 2 . 22 . 1 1 22 9 10 7 3 7 7 25 14 23 19 15 2 7 . 15 1 15 2 7 5 18 9 12 9 13 3 10 20 14 11 24 Power 35 | 1 . . 3 . . . 2 1 . 1 . 1 1 2 1 3 2 1 . 1 . 1 . 1 1 . . 1 . . 1 1 . 1 1 2 5 . Engine 11 | 1 . . 3 . . . 2 1 . . . . 1 . 1 1 . 1 . . . . . . . . . . . . . . . . . . . . Core 4 | . . . . . . . . . . . . . . . . 2 . . . . . . . . 1 . . . . . . 1 . . . . . . Reactor 20 | . . . . . . . . . . 1 . 1 . 2 . . 2 . . 1 . 1 . 1 . . . 1 . . 1 . . 1 1 2 5 . Propulsion 58 | 2 . . 8 . . . 7 3 4 1 . 3 . 4 3 1 1 . . 1 . 3 . 2 . 1 . 2 1 . . 2 2 1 2 2 . 2 Treads 54 | 2 . . 8 . . . 7 3 4 1 . 3 . 3 3 1 1 . . 1 . 3 . 1 . 1 . 2 1 . . 2 2 1 2 2 . . Leg 2 | . . . . . . . . . . . . . . 1 . . . . . . . . . 1 . . . . . . . . . . . . . . Wheel . | . . . . . . . . . . . . . . . . . . . . . . . . . . . . . . . . . . . . . . . Hover . | . . . . . . . . . . . . . . . . . . . . . . . . . . . . . . . . . . . . . . . Flight 2 | . . . . . . . . . . . . . . . . . . . . . . . . . . . . . . . . . . . . . . 2 Utility 218 | . 2 . 3 . . . 8 4 1 4 3 2 4 14 5 10 15 9 2 5 . 10 1 8 1 6 3 13 6 11 5 10 1 8 13 10 5 16 Device 51 | . 1 . 1 . . . . 2 . . . 1 1 2 . 6 6 1 1 2 . 4 . 1 1 1 . 4 2 . 2 . . 3 2 2 2 3 Storage 7 | . 1 . 1 . . . 1 . . . 1 . . . . . . . 1 . . . . . . . . . . . . 1 . . . . . 1 Processor 4 | . . . . . . . 1 . . . . . . . . . . . . . . 1 . 1 . . . . . . . . . . . 1 . . Hackware 126 | . . . . . . . 1 . 1 1 1 . 1 10 4 1 9 7 . . . 5 . 5 . 5 3 9 4 11 3 9 1 4 11 5 3 12 Protection 30 | . . . 1 . . . 5 2 . 3 1 1 2 2 1 3 . 1 . 3 . . 1 1 . . . . . . . . . 1 . 2 . . Artifact . | . . . . . . . . . . . . . . . . . . . . . . . . . . . . . . . . . . . . . . . Weapon 78 | 2 . . 8 . 1 1 5 1 5 1 . 1 2 5 5 9 1 5 . . . 1 . 4 . . 2 2 2 1 3 . . . 4 . 1 6 Energy Gun 16 | 1 . . 2 . . . . . . . . . . 4 2 5 . . . . . . . 2 . . . . . . . . . . . . . . Energy Cannon 18 | . . . . . . . . . . . . 1 . . 2 . . 3 . . . . . . . . 1 2 1 . 2 . . . 3 . 1 2 Ballistic Gun 20 | 1 . . 6 . . . 4 1 4 . . . 1 . . 1 . . . . . 1 . 1 . . . . . . . . . . . . . . Ballistic Cannon 1 | . . . . . . . . . . . . . . . . . . . . . . . . 1 . . . . . . . . . . . . . . Launcher 7 | . . . . . . 1 . . 1 . . . 1 . 1 3 . . . . . . . . . . . . . . . . . . . . . . Special Weapon 10 | . . . . . . . . . . 1 . . . 1 . . 1 2 . . . . . . . . 1 . 1 1 1 . . . 1 . . . Impact Weapon . | . . . . . . . . . . . . . . . . . . . . . . . . . . . . . . . . . . . . . . . Slashing Weapon 4 | . . . . . . . 1 . . . . . . . . . . . . . . . . . . . . . . . . . . . . . . 3 Piercing Weapon . | . . . . . . . . . . . . . . . . . . . . . . . . . . . . . . . . . . . . . . . Special Melee Weapon 2 | . . . . . 1 . . . . . . . . . . . . . . . . . . . . . . . . . . . . . . . . 1 Unidentified Prototypes 29 | . . . 2 . . . 2 . . . . . . . 5 7 . 1 1 2 . 5 . . . . . . . . . . . . . . . 4 Corrupted Parts 6 | . . . . . . . . . . . . . . . . . . . . . . 2 . . . . . . . . . . . . 1 . . 3 System Corruption 34 | . . . . . . . . . . . . . . . . . . . . . . 10 . . . . . . . . . . . . 9 . . 15 Parts Lost 79 | . . . 2 . . . 3 10 1 1 . . 3 10 2 3 2 2 1 . . 2 . 4 . . . . . . . 3 . 2 1 . 2 25 Power 10 | . . . 1 . . . . . . . . . 1 2 . . . 1 . . . . . 1 . . . . . . . . . 1 . . . 3 Propulsion 12 | . . . . . . . . 3 1 1 . . . 2 . . . . . . . 1 . . . . . . . . . . . . . . . 4 Utility 37 | . . . . . . . 3 5 . . . . 1 4 2 2 1 1 1 . . . . 2 . . . . . . . 3 . 1 1 . 2 8 Weapon 20 | . . . 1 . . . . 2 . . . . 1 2 . 1 1 . . . . 1 . 1 . . . . . . . . . . . . . 10 Highest Loss Streak 17 | . . . 1 . . . 1 5 1 1 . . 2 3 1 2 1 1 1 . . 1 . 3 . . . . . . . 2 . 1 1 . 2 17 To Critical Strikes 3 | . . . . . . . . . . . . . 1 1 . . . . . . . . . 1 . . . . . . . . . . . . . . Average Backups 23 | 1 4 6 18 20 19 19 22 23 24 24 24 24 21 21 22 21 22 23 21 24 23 23 22 10 21 23 23 22 21 21 22 25 26 27 27 28 28 25 Power 1 | . 1 1 2 2 2 2 2 2 2 2 2 2 2 1 1 1 1 1 1 1 1 1 2 . 1 1 1 1 1 1 1 2 2 1 . . 1 . Propulsion 1 | . . . 1 3 3 3 3 5 6 3 1 1 2 2 1 3 1 . . . 1 1 1 . 2 2 2 2 1 1 1 1 . 1 . . . . Utility 14 | . 1 2 8 9 7 8 8 9 11 14 15 15 12 12 10 8 13 17 15 18 16 15 14 5 10 16 18 16 14 14 15 18 20 18 19 21 20 19 Weapon 4 | . 1 2 4 5 6 5 6 3 3 4 5 4 3 3 7 7 5 3 3 3 4 4 4 2 5 2 1 2 3 3 2 2 3 3 3 3 4 3 Tool/Special . | . . . . . . . . . . . . . . . . . . . . . . . . . . . . . . . . . . . . . . . Unused Backups 84 | . 1 . 8 . 2 . 3 1 4 3 1 4 . 12 1 2 1 1 1 . 2 . . 3 . 7 . 1 1 1 1 6 . . 4 . 3 10 Power 9 | . . . 3 . . . . . 1 1 . 2 . . . . . . . . . . . 1 . . . . . . . 1 . . . . . . Propulsion 6 | . . . . . . . 1 . . 1 . 1 . . . . . . . . . . . . . 1 . . 1 . . 1 . . . . . . Utility 43 | . 1 . 1 . 1 . . 1 2 1 1 1 . 6 . 2 1 1 . . 2 . . 1 . 4 . 1 . . . 4 . . 3 . . 9 Weapon 23 | . . . 4 . 1 . 2 . 1 . . . . 6 1 . . . 1 . . . . 1 . 2 . . . 1 1 . . . . . 2 . Tool/Special 3 | . . . . . . . . . . . . . . . . . . . . . . . . . . . . . . . . . . . 1 . 1 1 Average Slot Usage (%) 87 | . 93 100 97 100 83 100 99 99 99 99 99 76 64 81 91 87 79 79 79 85 86 87 93 77 82 86 87 87 88 86 88 84 77 76 75 77 76 74 Engine 4 | . 14 14 10 11 11 11 8 9 9 7 . . 1 4 5 7 . 5 6 6 6 5 . 3 1 . . . . . . . . . . . . . Reactor 5 | . . . . . . . . . . 1 7 7 5 2 1 . 7 6 5 6 6 7 11 4 5 5 5 10 10 10 10 8 9 9 8 11 12 12 Treads 18 | . 28 28 31 33 33 33 27 26 26 27 30 22 15 16 23 17 13 13 13 13 13 14 17 10 11 11 11 11 15 15 15 15 13 14 13 13 13 11 Device 10 | . 8 14 10 11 11 11 7 6 9 1 . 2 2 7 6 13 9 7 13 13 19 18 16 5 5 9 7 8 18 17 15 13 10 11 11 13 17 12 Storage 6 | . 13 14 11 11 11 11 9 9 9 9 7 7 7 7 7 6 6 6 6 6 6 6 5 2 5 5 5 5 5 5 5 8 9 6 4 4 4 4 Processor 3 | . . . . . . . 1 9 9 9 7 2 . . . . . . . . . . . 4 5 5 5 5 5 5 5 5 4 4 4 4 4 4 Hackware 13 | . . . . . . . 8 2 7 9 7 9 6 17 22 17 14 16 13 13 6 11 17 34 29 23 26 26 18 18 21 17 19 15 16 17 11 16 Protection 8 | . . . 10 11 11 11 18 17 10 16 22 7 9 8 7 5 6 6 6 11 13 9 11 1 5 5 5 3 3 3 4 1 . 2 4 3 4 3 Energy Gun 1 | . 14 14 4 . . . . . . . . . . 1 11 11 6 . . . . . . 4 . 3 5 2 . . . . . . . . . . Energy Cannon 3 | . . . . . . . . . . . . . . 3 . . 2 7 12 13 12 12 11 1 . . . 3 6 5 6 7 4 4 4 4 4 4 Ballistic Gun 5 | . 14 14 17 22 . 21 17 13 17 12 14 12 13 2 . . . . . . . . . . . . . . . . . . . . . . . . Special Weapon 1 | . . . . . . . . . . . . . 1 4 2 . 2 4 . . . . . . . 3 5 4 3 5 3 3 4 3 3 3 3 2 Peak Build Rating 194 | 5 9 9 22 21 21 21 38 50 51 49 57 77 78 70 63 89 97 95 90 107 109 111 122 122 121 123 120 129 134 138 133 134 135 152 152 172 190 194 Average Rating 90 | 4 7 9 19 21 17 21 33 44 45 46 52 66 69 62 58 77 88 87 88 104 108 107 121 98 119 118 118 120 131 131 130 124 131 141 147 164 177 174 On Entrance 83 | . 5 9 9 21 21 21 21 38 50 45 44 50 77 59 61 60 87 92 81 90 107 109 111 122 114 121 118 120 123 128 133 129 121 131 150 148 168 181 Naked Turns . | . . . . . . . . . . . . . . . . . . . . . . . . . . . . . . . . . . . . . . . Heaviest Build 301 | 9 30 30 67 66 66 66 117 124 123 118 122 151 147 128 112 130 144 147 140 143 144 150 158 158 147 154 136 159 168 164 164 289 278 301 233 250 251 254 Greatest Support 225 | 40 40 40 60 60 60 60 64 80 80 73 93 140 140 140 110 140 145 145 145 155 155 155 130 155 155 155 140 150 177 177 177 177 225 220 215 220 220 220 Greatest Overweight (x) 8 | 1 . . 1 1 1 1 1 1 1 1 1 1 1 2 1 1 . 1 1 . . 1 1 1 . . 2 1 1 1 . 1 1 1 1 1 1 8 Average Overweight (x) . | . . . . 1 . 1 1 1 1 1 1 1 . . . . . . . . . . 1 . . . . . . . . . 1 1 . 1 1 . Largest Inventory Capacity 30 | 5 15 15 20 20 20 20 25 25 25 25 25 25 25 25 25 25 25 25 25 25 25 25 25 25 25 25 25 25 25 25 25 30 30 30 30 30 30 30 Average Capacity 25 | 5 14 15 19 20 20 20 24 25 25 25 25 25 25 25 25 25 25 25 25 25 25 25 25 15 25 25 25 25 25 25 25 28 30 30 30 30 30 28 Most Carried 30 | 2 6 6 20 20 20 20 25 25 25 25 25 25 25 25 25 25 25 25 25 25 25 25 25 23 22 25 25 25 25 25 25 30 30 30 30 30 30 30 Average Carried 24 | 1 4 6 18 20 19 19 22 23 24 24 24 24 23 23 24 23 24 24 22 24 24 24 23 9 21 23 24 24 23 23 24 27 28 29 29 29 29 27 Final Capacity 30 | 5 15 15 20 20 20 20 25 25 25 25 25 25 25 25 25 25 25 25 25 25 25 25 25 25 25 25 25 25 25 25 25 30 30 30 30 30 30 5 Final Carried 30 | 2 6 6 20 20 19 20 24 25 25 24 25 25 21 22 25 22 25 23 25 25 25 25 23 16 22 25 25 25 22 24 23 30 29 30 30 30 30 3 Class Distribution -------------------- 56% | Botlord-Mutant 23% | Bothacker-Mutant 11% | Mutant 8% | Scavenger-Mutant Dominant Class ---------------- Mutant | -10/Materials Mutant | -10/Mines Scavenger-Mutant | -9/Materials Scavenger-Mutant | -9/Mines Mutant | -9/Exiles Scavenger-Mutant | -8/Mines Mutant | -8/Materials Bothacker-Mutant | -8/Garrison Bothacker-Mutant | -8/Materials Bothacker-Mutant | -8/Garrison Bothacker-Mutant | -7/Factory Bothacker-Mutant | -7/Waste Bothacker-Mutant | -7/Factory Bothacker-Mutant | -7/Garrison Bothacker-Mutant | -7/Storage Bothacker-Mutant | -6/Factory Botlord-Mutant | -6/Garrison Botlord-Mutant | -6/Factory Botlord-Mutant | -6/Extension Botlord-Mutant | -6/Cetus Botlord-Mutant | -6/Archives Botlord-Mutant | -6/Hub_04(d) Botlord-Mutant | -5/Factory Botlord-Mutant | -5/Waste Bothacker-Mutant | -5/Factory Botlord-Mutant | -5/Garrison Botlord-Mutant | -5/Factory Botlord-Mutant | -5/Garrison Botlord-Mutant | -4/Factory Botlord-Mutant | -4/Garrison Botlord-Mutant | -4/Factory Botlord-Mutant | -4/Garrison Botlord-Mutant | -3/Research Botlord-Mutant | -3/Quarantine Botlord-Mutant | -3/Garrison Botlord-Mutant | -2/Research Botlord-Mutant | -2/Testing Botlord-Mutant | -2/Protoforge Resources | -11 -10 -10 -9 -9 -9 -8 -8 -8 -8 -8 -7 -7 -7 -7 -7 -6 -6 -6 -6 -6 -6 -6 -5 -5 -5 -5 -5 -5 -4 -4 -4 -4 -3 -3 -3 -2 -2 -2 ----------- Run | Yrd Mat Min Mat Min Exi Min Mat Gar Mat Gar Fac Was Fac Gar Sto Fac Gar Fac Ext Cet Arc Hub Fac Was Fac Gar Fac Gar Fac Gar Fac Gar Res Qua Gar Res Tes Frg Matter Collected 18573 | 235 200 . 1061 . . 66 1617 843 666 701 634 1278 280 945 563 605 537 546 127 80 37 492 58 226 87 474 214 751 531 464 217 687 173 422 775 545 354 1082 Remotely . | . . . . . . . . . . . . . . . . . . . . . . . . . . . . . . . . . . . . . . . Salvage Created 22352 | . 241 . 1995 . . 63 2551 935 1179 678 721 1140 314 537 566 1018 708 621 498 97 115 1081 26 287 167 326 55 530 929 372 394 969 20 671 623 630 664 631 Parts 1062 | . 10 . 131 . . 7 110 52 62 41 29 22 12 26 25 58 45 32 23 3 9 56 3 5 3 16 5 19 40 21 16 30 2 46 19 26 24 34 Haulers Intercepted 20 | . 1 . 5 . . . 5 . 4 . 1 . . . 1 1 . . . . . . . . 2 . . . . . . . . . . . . . Recyclers Shooed 19 | . . . 7 . . . . . 1 . . . 1 . 2 . . 4 . . . . . . 1 . . . 1 . . . 1 . . . 1 . Parts Field Recycled . | . . . . . . . . . . . . . . . . . . . . . . . . . . . . . . . . . . . . . . . Retrieved Matter . | . . . . . . . . . . . . . . . . . . . . . . . . . . . . . . . . . . . . . . . Parts Self-Destructed . | . . . . . . . . . . . . . . . . . . . . . . . . . . . . . . . . . . . . . . . Prevented . | . . . . . . . . . . . . . . . . . . . . . . . . . . . . . . . . . . . . . . . Kills | -11 -10 -10 -9 -9 -9 -8 -8 -8 -8 -8 -7 -7 -7 -7 -7 -6 -6 -6 -6 -6 -6 -6 -5 -5 -5 -5 -5 -5 -4 -4 -4 -4 -3 -3 -3 -2 -2 -2 ------- Run | Yrd Mat Min Mat Min Exi Min Mat Gar Mat Gar Fac Was Fac Gar Sto Fac Gar Fac Ext Cet Arc Hub Fac Was Fac Gar Fac Gar Fac Gar Fac Gar Res Qua Gar Res Tes Frg Combat Hostiles Destroyed 352 | . 2 . 33 . . 5 39 25 13 23 7 4 8 16 9 29 14 13 7 1 1 14 . 1 . 6 1 3 12 5 5 12 . 9 8 10 8 9 Melee 5 | . . . . . . . . . . . . . . 4 . . . . . . . . . . . . . . . . . . . . . 1 . . Guns 162 | . 2 . 29 . . 1 30 19 13 11 7 3 6 2 8 13 10 . . . . 3 . . . 1 1 3 . . . . . . . . . . Cannons 97 | . . . . . . . . . . . . 1 . 6 . . 4 8 5 1 1 10 . 1 . 5 . . 9 3 4 9 . 9 5 8 2 6 AOE 59 | . . . 4 . . 4 9 6 . 12 . . 2 4 . 13 . 5 . . . . . . . . . . . . . . . . . . . . Classes Destroyed 23 | . 3 . 9 . . 1 . 4 . . . 1 . . . 2 . 1 . . . . . . . . . . . . 1 . . . . . . 1 Worker 26 | . . . 2 . . . 1 . 1 . 3 . . . . 1 . 1 . . . 1 1 . . . . . 6 . 1 . 1 4 . 1 . 2 Builder 16 | . . . 2 . . . 3 . . . . . . . 2 1 . 1 . . . 3 . . . . . . . . . . . 2 . 1 1 . Tunneler 4 | . . . 1 . . . 1 . . . 1 . . . . . . . 1 . . . . . . . . . . . . . . . . . . . Hauler 20 | . 1 . 5 . . . 5 . 4 . 1 . . . 1 1 . . . . . . . . 2 . . . . . . . . . . . . . Recycler 17 | . 1 . 3 . . . 5 . 3 . 3 . . . . . . 2 . . . . . . . . . . . . . . . . . . . . Mechanic 2 | . . . 1 . . . . . . . . . . . . 1 . . . . . . . . . . . . . . . . . . . . . . Operator 4 | . . . 2 . . . . . . . . . . . . . . 1 . . 1 . . . . . . . . . . . . . . . . . Watcher 17 | . . . 5 . . . 3 . 2 . . . . . . 1 . . 1 1 . 1 . . . . . . . . . . . 1 . 1 . 1 Swarmer 66 | . . . 10 . . 4 4 6 . 8 . . 1 6 . 6 2 11 . . . 3 . . . . . 1 1 . . . . 2 . 1 . . Cutter 8 | . . . . . . . . 2 . . . . . . . . 2 . . . . . . . . . . . . . . 4 . . . . . . Grunt 91 | . 2 . 13 . . . 26 6 7 6 1 . 4 3 5 3 4 . 1 . . 2 . . . . . . 2 . . 1 . . 2 1 2 . Brawler 4 | . . . . . . . . 1 . . 1 . 2 . . . . . . . . . . . . . . . . . . . . . . . . . Duelist 10 | . . . 1 . . . . 1 . 2 . . . 2 . 2 . . . . . . . . . . . . 1 . . . . 1 . . . . Protector 3 | . . . . . . . . . . . . . . . . 2 . . . . . 1 . . . . . . . . . . . . . . . . Sentry 51 | . . . 9 . . . 8 5 6 3 3 . . . 1 2 2 . 4 . 1 4 . . . 2 . . . 1 . . . . . . . . Demolisher 2 | . . . . . . . . . . . . . . . . . . . . . . . . . . . . . . . 1 1 . . . . . . Specialist 6 | . . . . . . . . . . . . . . . . 2 . . . . . . . . . . . . . . . . . . . . 3 1 Hunter 37 | . . . . . . 1 1 . . 2 . . . 1 2 8 3 . . . . 1 . . . 1 . . 4 2 1 4 . 1 4 . 1 . Programmer 56 | . . . . . . . . 3 . 2 2 . 1 4 3 4 2 1 1 . . 1 . . . 3 1 2 4 2 2 2 . 5 1 8 2 . Heavy 1 | . . . . . . . . . . . . . . . . . . 1 . . . . . . . . . . . . . . . . . . . . Behemoth 4 | . . . . . . . . 1 . . . . . . . . . . 1 . . . . . . . . . . . 1 . . . 1 . . . Compactor 5 | . . . . . . . . . . . . 4 . . . . . . . . . . . 1 . . . . . . . . . . . . . . Cetus Guard 1 | . . . . . . . . . . . . . . . . . . . . 1 . . . . . . . . . . . . . . . . . . Enhanced Grunt 1 | . . . . . . . . . . . . . . . . . . . . . . 1 . . . . . . . . . . . . . . . . Lightning 4 | . . . . . . . . . . . . . . . . . . . . . . 3 . 1 . . . . . . . . . . . . . . Hotshot 2 | . . . . . . . . . . . . . . . . . . . . . . . . . . . . . . . . . . . . . . 2 Decapitator 4 | . . . . . . . . . . . . . . . . . . . . . . . . . . . . . . . . . . . . . . 4 V-Series 2 | . . . . . . . . . . . . . . . . . . . . . . . . . . . . . . . . . . . . . . 2 Best Kill Streak 12 | . 3 . 6 . . 4 8 7 4 7 3 1 3 6 2 12 3 3 4 1 1 3 1 1 1 3 1 1 6 2 3 4 1 4 3 5 3 3 Combat Bots Only 10 | . 2 . 3 . . 4 4 7 2 7 1 1 3 6 2 10 3 3 4 1 1 3 . 1 . 3 1 1 2 2 2 4 . 4 3 4 3 3 Max Kills in Single Turn 5 | . 1 . 2 . . 3 4 2 1 4 1 1 1 4 2 5 2 2 1 1 1 2 1 1 1 1 1 1 3 1 2 2 1 2 1 1 1 1 Gunslinging 1 | . . . 1 . . . . 1 . . . . . . . . 1 . . . . . . . . . . . . . . . . . . . . . Exploded 4 | . . . 2 . . 3 3 2 . 4 . . 1 4 . 4 . 2 . . . . . . . . . . . . . . . . . . . . Melee 1 | . . . . . . . . . . . . . . 1 . . . . . . . . . . . . . . . . . . . . . 1 . . Uniques/NPCs Destroyed . | . . . . . . . . . . . . . . . . . . . . . . . . . . . . . . . . . . . . . . . Combat | -11 -10 -10 -9 -9 -9 -8 -8 -8 -8 -8 -7 -7 -7 -7 -7 -6 -6 -6 -6 -6 -6 -6 -5 -5 -5 -5 -5 -5 -4 -4 -4 -4 -3 -3 -3 -2 -2 -2 -------- Run | Yrd Mat Min Mat Min Exi Min Mat Gar Mat Gar Fac Was Fac Gar Sto Fac Gar Fac Ext Cet Arc Hub Fac Was Fac Gar Fac Gar Fac Gar Fac Gar Res Qua Gar Res Tes Frg Hostile Shots Fired 2807 | . 9 . 135 . . 15 171 179 45 58 95 . 59 185 137 201 135 54 115 14 . 128 10 14 . 47 33 88 73 53 18 153 9 77 130 109 39 219 Missed 825 | . 2 . 43 . . 3 43 46 11 13 40 . 20 50 49 73 35 11 50 7 . 43 5 2 . 19 9 21 25 14 6 37 3 16 38 30 12 49 Hits 1982 | . 7 . 92 . . 12 128 133 34 45 55 . 39 135 88 128 100 43 65 7 . 85 5 12 . 28 24 67 48 39 12 116 6 61 92 79 27 170 Melee 128 | . . . 4 . . . . 2 . . . . 11 12 . 12 3 . 2 . . . . 12 . . . 2 . . . 5 . 4 4 . . 55 Projectile 1854 | . 7 . 88 . . 12 128 131 34 45 55 . 28 123 88 116 97 43 63 7 . 85 5 . . 28 24 65 48 39 12 111 6 57 88 79 27 115 AOE 30 | . . . . . . . . 2 . . . . . . . . . . . . . . . . . . . . . . 2 14 . 1 . 2 . 9 Critical Strikes 140 | . . . 5 . . . 1 8 1 1 1 . 3 8 2 4 4 . 2 1 . 6 1 7 . 1 1 2 4 3 . 3 1 6 7 7 2 48 Actively Blocked 57 | . . . . . . . . . . . . . . . . . . . . . . . . . . . . . 1 . . 2 1 . 5 . 1 47 Part Disruptions 9 | . . . . . . . . 1 . . . . . 1 . . . . 1 . . . . . . . 1 1 1 1 . . . 1 1 . . . Damage Taken 29969 | . 93 . 930 . . 87 1295 1958 379 681 393 . 725 2329 938 1880 1165 724 466 91 37 953 68 568 4 459 462 783 521 434 146 1788 136 822 1749 771 429 5705 Core 3550 | . 12 . 130 . . 13 150 131 36 44 12 . 34 295 53 227 69 7 18 . . 131 . 66 . 61 31 116 38 31 7 212 . 77 126 9 40 1374 Absorbed by Shields 9147 | . . . 283 . . 31 465 281 140 . . . . . . 462 184 189 328 95 37 657 64 15 . 216 120 385 550 458 155 819 36 317 836 481 415 1128 Reduced by Siege Mode 391 | . . . . . . . . . . . . . 17 . . 4 11 . . . . . . . . . . . . 3 . 46 . . . 30 7 273 Ignored by Resistances 3405 | . . . 105 . . 33 165 259 7 . 55 . . . . . . . . . . . . . . . 208 239 60 . . 219 . 503 . 1087 303 162 Regen/Repaired (Parts) 3844 | . . . 21 . . . 28 . . . 189 67 . . 389 248 . 670 . . . . . 697 4 171 248 . 136 . 86 88 194 434 . 174 . . Core Remaining (%) 68 | 100 . 95 . . . 64 . . . 34 . . . . 43 . . . . . . 46 . . . . . 72 . . . 74 . . 84 . . . Volleys Fired 2153 | . 13 . 137 . . 7 176 74 56 47 41 100 34 108 87 76 70 77 35 16 8 85 5 19 4 77 37 75 86 61 24 91 10 61 86 57 45 168 Largest 2 | . 2 . 2 . . 2 2 2 2 2 2 2 2 2 2 2 2 2 2 2 2 2 2 2 1 1 1 2 2 1 2 2 1 2 2 2 2 2 Hottest 300 | . 70 . 90 . . 46 53 48 50 61 50 80 53 150 162 176 176 180 180 180 180 180 180 180 70 81 81 196 196 98 196 196 98 196 203 203 203 300 Shots Fired 3285 | . 25 . 267 . . 12 346 142 113 84 80 178 59 139 135 129 99 100 70 32 15 159 10 34 4 77 38 85 101 62 32 126 10 89 105 83 58 187 Gun 1673 | . 25 . 267 . . 10 340 135 113 73 78 166 51 40 111 111 57 1 . . . 15 . . . 40 21 19 . . . . . . . . . . Cannon 1095 | . . . . . . . . . . . . 6 . 61 . . 19 71 69 32 14 132 10 31 4 21 . 22 68 25 21 96 3 63 60 66 37 164 Launcher 44 | . . . . . . 2 6 7 . 8 . . 5 1 . 7 . 5 . . . . . 3 . . . . . . . . . . . . . . Special 473 | . . . . . . . . . . 3 2 6 3 37 24 11 23 23 1 . 1 12 . . . 16 17 44 33 37 11 30 7 26 45 17 21 23 Kinetic 1268 | . 13 . 216 . . 10 340 135 113 73 78 166 51 30 . . . . . . . 15 . . 4 21 . 3 . . . . . . . . . . Thermal 1322 | . 12 . 19 . . . . . . . . 6 . 71 111 111 76 72 69 32 14 132 10 31 . 40 21 38 54 20 17 80 3 63 43 66 10 101 Explosive 44 | . . . . . . 2 6 7 . 8 . . 5 1 . 7 . 5 . . . . . 3 . . . . . . . . . . . . . . Electromagnetic 178 | . . . 32 . . . . . . . . . . . . . . . . . . . . . . . . . 14 5 4 16 . . 17 . 27 63 Robot Hit Streak 51 | . 9 . 14 . . 7 38 51 18 7 23 20 29 9 6 11 7 11 33 7 14 12 7 15 19 30 16 22 26 15 9 42 10 13 19 13 15 27 Robot Miss Streak 7 | . 4 . 4 . . 1 7 5 3 2 3 3 3 4 4 4 5 3 3 2 1 4 3 2 . 2 2 1 4 3 1 5 1 2 3 2 1 5 Penetration Max 1 | . . . . . . . 1 . . . . . . 1 . . . . . . . 1 . . . 1 . . . . . . . . . . . . Secondary Targets 13 | . . . 2 . . . 1 3 . 1 . . 1 . 2 2 1 . . . . . . . . . . . . . . . . . . . . . Max Gunslinging Chain 1 | . . . 1 . . . 1 1 . 1 . . 1 . 1 1 1 . . . . . . . . . . . . . . . . . . . . . Capacitor 54 | . . . . . . . . . . . . . . . . . . . . . . . . . . . . . . . . . . . . . . 54 Shots Hit Robots 2277 | . 17 . 179 . . 9 238 115 81 53 59 141 36 83 65 81 58 54 50 20 13 90 7 31 4 58 31 66 72 42 22 93 8 65 82 63 44 147 Core Hits 829 | . 10 . 77 . . 7 109 52 40 42 25 26 18 24 18 63 20 21 20 11 5 41 3 7 1 9 5 12 34 5 7 24 2 19 13 14 7 38 Critical Kills 23 | . . . . . . . . 2 1 . . . . . . . . . 2 . . 5 . . . . . 2 1 1 1 3 . 1 . 1 1 2 Critical Parts Destroyed 6 | . . . 1 . . . 2 1 . . . 1 . . . . . . . . . 1 . . . . . . . . . . . . . . . . Critical Strikes 59 | . . . 4 . . . 2 3 1 . . 4 . 4 . 5 4 . 2 . . 6 . . 1 4 . 4 1 1 1 3 . 1 . 1 1 6 Burn 17 | . . . 3 . . . . . . . . . . 2 . 5 4 . . . . . . . . 1 . 2 . . . . . . . . . . Meltdown 17 | . . . . . . . . . . . . . . . . . . . 2 . . 2 . . . . . 2 1 1 1 3 . 1 . 1 1 2 Destroy 16 | . . . 1 . . . 2 3 1 . . 4 . . . . . . . . . 4 . . . . . . . . . . . . . . . 1 Blast 4 | . . . . . . . . . . . . . . . . . . . . . . . . . 1 3 . . . . . . . . . . . . Corrupt 2 | . . . . . . . . . . . . . . . . . . . . . . . . . . . . . . . . . . . . . . 2 Sever 3 | . . . . . . . . . . . . . . 2 . . . . . . . . . . . . . . . . . . . . . . . 1 Melee Attacks 76 | . . . . . . . 1 20 7 7 1 . . 20 . . . . . . . . . . . . . . . . . . . . . . . 20 Impact . | . . . . . . . . . . . . . . . . . . . . . . . . . . . . . . . . . . . . . . . Slashing 70 | . . . . . . . 1 20 7 7 1 . . 20 . . . . . . . . . . . . . . . . . . . . . . . 14 Piercing . | . . . . . . . . . . . . . . . . . . . . . . . . . . . . . . . . . . . . . . . Sneak Attacks 6 | . . . . . . . . . 2 . . . . 1 . . . . . . . . . . . . . . . . . . . . . . . 3 Combat Hostiles 1 | . . . . . . . . . . . . . . 1 . . . . . . . . . . . . . . . . . . . . . . . . Follow-up Attacks 1 | . . . . . . . . . . . . . . . . . . . . . . . . . . . . . . . . . . . . . . 1 Damage Inflicted 58524 | . 209 . 3205 . . 427 4897 2415 1635 1875 1207 2578 927 2021 1665 5183 1152 1762 1557 583 327 2718 233 1535 307 2198 467 839 2361 722 490 2539 65 1878 1778 2031 1044 3694 Guns 21942 | . 203 . 2787 . . 90 3966 1893 1400 770 1066 2425 564 628 1288 1977 952 23 . . . 248 . . . 805 447 410 . . . . . . . . . . Cannons 25336 | . . . . . . . . . . . . 153 . 637 . . 191 952 1539 583 327 2301 233 762 307 1393 . 427 1948 683 485 2539 65 1717 1757 2010 948 3379 Explosions 9017 | . . . 342 . . 337 834 522 . 1105 . . 350 286 283 3194 . 586 . . . 79 . 773 . . . . 326 . . . . . . . . . Melee 908 | . . . . . . . . . 177 . . . . 444 . . . . . . . . . . . . . . . . . . . . . . . 287 Ramming 1321 | . 6 . 76 . . . 97 . 58 . 141 . 13 26 94 12 9 201 18 . . 90 . . . . 20 2 87 39 5 . . 161 21 21 96 28 Kinetic 16848 | . 92 . 2138 . . 90 3966 1893 1400 770 1066 2425 564 496 . . . . . . . 248 . . 307 1393 . . . . . . . . . . . . Thermal 27196 | . 111 . 449 . . . . . . . . 153 . 769 1288 1977 1143 1047 1539 583 327 2301 233 762 . 805 447 837 1486 486 348 2140 65 1717 1279 2010 254 2640 Explosive 8198 | . . . . . . 337 834 522 . 1105 . . 350 286 283 3194 . 514 . . . . . 773 . . . . . . . . . . . . . . Electromagnetic 4053 | . . . 542 . . . . . . . . . . . . . . . . . . 79 . . . . . . 788 197 137 399 . . 478 . 694 739 Impact . | . . . . . . . . . . . . . . . . . . . . . . . . . . . . . . . . . . . . . . . Slashing 908 | . . . . . . . . . 177 . . . . 444 . . . . . . . . . . . . . . . . . . . . . . . 287 Piercing . | . . . . . . . . . . . . . . . . . . . . . . . . . . . . . . . . . . . . . . . Highest Corruption 35 | . . . 2 2 2 2 4 5 5 5 1 18 26 31 33 . 1 4 5 5 . 19 . . . 1 2 5 1 3 3 1 . 1 11 7 17 35 Average Corruption 8 | . . . 1 2 2 2 4 4 5 5 1 16 20 30 32 . 1 2 4 4 . 13 . . . 1 1 4 1 2 2 1 . 1 1 3 13 18 Corruption Purged 9 | . . . . . . . . . . . . . . . . . . . . 5 . . . . . . . . . . 3 . . 1 . . . . Corruption Blocked . | . . . . . . . . . . . . . . . . . . . . . . . . . . . . . . . . . . . . . . . Effects 793 | . . . 19 4 2 5 6 45 61 24 8 32 21 95 94 . 2 17 37 3 . 17 . . . 8 13 50 . 18 7 8 . 10 12 18 54 103 Message Errors 196 | . . . 4 . 2 2 1 6 22 5 1 3 3 23 20 . . 4 10 1 . 6 . . . 3 3 14 . 3 3 2 . 2 3 7 12 31 Matter Fused 175 | . . . 8 . . 1 2 11 18 6 1 6 5 16 19 . 1 4 8 . . 5 . . . . 3 11 . 4 1 1 . 2 1 1 10 30 Heat Flow Errors 96 | . . . . . . 1 1 8 4 2 3 4 4 16 11 . . 1 3 1 . 1 . . . 2 3 8 . 2 2 1 . . 1 2 9 6 Energy Discharges 100 | . . . 1 1 . 1 1 4 5 3 1 4 4 9 18 . . 4 6 . . . . . . 1 1 3 . 4 . 1 . 2 4 3 8 11 Parts Rejected 9 | . . . . . . . . . . . 1 2 1 2 . . . . . . . . . . . . . 1 . . . . . . . . . 2 Parts Fused 8 | . . . . . . . . 1 1 . . . . . . . . 1 1 . . . . . . 1 . 1 . 1 . . . . . . . 1 Data Loss (minor) 97 | . . . 4 2 . . . 8 8 4 . 4 1 13 11 . 1 1 5 1 . 4 . . . 1 . 4 . 2 1 1 . 2 2 1 6 10 Data Loss (major) 32 | . . . 1 1 . . 1 1 2 2 1 . . 6 1 . . 1 1 . . . . . . . 2 3 . 1 . . . 1 1 1 4 1 Misfires 36 | . . . 1 . . . . 3 1 1 . 2 1 3 5 . . . 2 . . 1 . . . . 1 5 . 1 . 1 . 1 . 2 3 2 Alerts 12 | . . . . . . . . 1 . . . . . . 3 . . 1 1 . . . . . . . . . . . . 1 . . . 1 2 2 Misdirections 11 | . . . . . . . . . . . . 1 . 3 1 . . . . . . . . . . . . . . . . . . . . . . 6 Weapon Failures 21 | . . . . . . . . 2 . 1 . 6 2 4 5 . . . . . . . . . . . . . . . . . . . . . . 1 Overload Shots . | . . . . . . . . . . . . . . . . . . . . . . . . . . . . . . . . . . . . . . . Overflow Damage 1478 | . . . 1 . . 6 8 20 52 8 29 . 7 103 7 122 . 40 14 . . 63 . 20 63 298 . . 69 43 . 118 . 77 87 178 33 12 Projectiles 1044 | . . . . . . . . . . . . . . 31 . . . 1 14 . . 61 . . 63 298 . . 69 43 . 118 . 54 82 178 20 12 Explosions 222 | . . . . . . 6 . 20 . 8 . . 7 34 . 122 . 5 . . . . . 20 . . . . . . . . . . . . . . Melee 212 | . . . 1 . . . 8 . 52 . 29 . . 38 7 . . 34 . . . 2 . . . . . . . . . . . 23 5 . 13 . Knockbacks 19 | . . . . . . . 1 . 1 . . . . 1 . . . 4 1 . . 1 . . 2 5 . . 1 1 . . . . . . 1 . Impact 12 | . . . . . . . 1 . 1 . . . . 1 . . . 4 1 . . 1 . . . . . . 1 1 . . . . . . 1 . Kinetic 6 | . . . . . . . . . . . . . . . . . . . . . . . . . 2 4 . . . . . . . . . . . . Secondary 1 | . . . . . . . . . . . . . . . . . . . . . . . . . . 1 . . . . . . . . . . . . Self-Inflicted Damage 481 | . . . 97 . . . . 70 . . . . . . 74 . . . . . . 94 . 146 . . . . . . . . . . . . . . Shots 11 | . . . 3 . . . . 3 . . . . . . 1 . . . . . . 1 . 3 . . . . . . . . . . . . . . Rammed 85 | . 2 . 8 . . . 7 . 4 . 6 . 1 1 5 2 1 12 1 . . 6 . . . . 2 1 6 3 1 . . 8 3 1 3 1 Targets Rammed 96 | . 2 . 10 . . . 7 . 4 . 9 . 1 2 5 2 1 13 1 . . 7 . . . . 2 1 6 3 1 . . 9 3 2 4 1 Kicked . | . . . . . . . . . . . . . . . . . . . . . . . . . . . . . . . . . . . . . . . Crushed 11 | . . . 2 . . . . . . . 3 . . 1 . . . 1 . . . 1 . . . . . . . . . . . 1 . 1 1 . Highest Temperature 590 | . 90 . 240 . . 245 236 237 270 207 203 531 242 224 407 357 590 234 180 244 102 283 8 . . 160 320 260 . . 132 91 . . 35 442 201 175 Average Temperature 77 | . 36 . 51 . . 125 37 64 63 51 47 91 90 97 106 97 155 89 81 92 51 91 8 . . 62 121 89 . . 46 57 . . 18 163 92 52 Received Heat Transfer 4107 | . 54 . 329 . . . 487 552 169 171 51 . 108 438 204 284 215 20 110 4 . 47 182 . . 60 9 45 53 68 4 165 4 15 113 29 24 93 Effects 24 | . . . . . . . . . . 1 . 6 . . 2 . 8 1 . . . . . . . . 3 . . . . . . . . 3 . . Shutdowns 3 | . . . . . . . . . . . . . . . . . 1 . . . . . . . . . 1 . . . . . . . . 1 . . Energy Bleed 5 | . . . . . . . . . . 1 . . . . . . 2 . . . . . . . . . 2 . . . . . . . . . . . Interference 3 | . . . . . . . . . . . . . . . . . . 1 . . . . . . . . . . . . . . . . . 2 . . Matter Decay 3 | . . . . . . . . . . . . 2 . . . . 1 . . . . . . . . . . . . . . . . . . . . . Short Circuit 3 | . . . . . . . . . . . . 1 . . . . 2 . . . . . . . . . . . . . . . . . . . . . Damage (minor) 4 | . . . . . . . . . . . . . . . 2 . 2 . . . . . . . . . . . . . . . . . . . . . Damage (major) 3 | . . . . . . . . . . . . 3 . . . . . . . . . . . . . . . . . . . . . . . . . . Siege Activations 14 | . . . . . . . . . . . . . 1 . . 1 2 . . . . . . . . . . . . 1 1 3 . . . 2 2 1 Total Turns 271 | . . . . . . . . . . . . . 17 . . 6 69 . . . . . . . . . . . . 4 11 37 . . . 59 23 45 Longest Duration 47 | . . . . . . . . . . . . . 17 . . 6 47 . . . . . . . . . . . . 4 11 14 . . . 35 17 45 Martial Activations . | . . . . . . . . . . . . . . . . . . . . . . . . . . . . . . . . . . . . . . . Shielding Activations . | . . . . . . . . . . . . . . . . . . . . . . . . . . . . . . . . . . . . . . . Robots Disrupted 1 | . . . 1 . . . . . . . . . . . . . . . . . . . . . . . . . . . . . . . . . . . Combat Hostiles 1 | . . . 1 . . . . . . . . . . . . . . . . . . . . . . . . . . . . . . . . . . . Robots Corrupted 22 | . . . 1 . . . 1 . 1 . . . . . 1 . . 2 . . . 1 . . . . . . 2 1 . 1 . 1 3 . 5 2 Combat Hostiles 14 | . . . . . . . . . . . . . . . . . . . . . . . . . . . . . 2 1 . 1 . . 3 . 5 2 Parts Fried 52 | . . . 6 . . . 2 . 2 . . . . . 5 . . 5 . . . 5 . . . . . . 4 1 2 3 . 4 1 . 9 3 Impact Corruptions 14 | . . . 1 . . . 1 . 2 . 2 . . . 1 . . 2 . . . 1 . . . . . . . . . . . 2 1 . 1 . Robots Melted 22 | . . . . . . . . . . . . . . . 1 3 . . 2 . . 2 . . . . . 2 1 1 1 4 . 1 . 1 1 2 Combat Hostiles 15 | . . . . . . . . . . . . . . . 1 3 . . 2 . . 1 . . . . . . 1 1 1 2 . . . 1 1 1 Parts Melted 102 | . . . 1 . . . . . . . . . . 2 4 14 8 5 7 . 2 6 . . . . . 4 8 3 4 13 . 3 1 10 2 5 Heat Transferred 37516 | . 333 . 1040 . . . . . . . . 300 . 1700 1850 3706 2238 1336 1979 777 444 2811 296 1036 . 1184 629 1327 2050 550 500 2775 100 2325 1555 2152 274 2249 Parts Sabotaged 4 | . . . . . . . . . . . . . . 2 . . . . . . . . . . . . . . . . . . . . 2 . . . Parts Stolen . | . . . . . . . . . . . . . . . . . . . . . . . . . . . . . . . . . . . . . . . Parts Stripped . | . . . . . . . . . . . . . . . . . . . . . . . . . . . . . . . . . . . . . . . Power Chain Reactions 4 | . . . 3 . . . . . . . . . . . . . . . . . . . . . . . . . 1 . . . . . . . . . Alert | -11 -10 -10 -9 -9 -9 -8 -8 -8 -8 -8 -7 -7 -7 -7 -7 -6 -6 -6 -6 -6 -6 -6 -5 -5 -5 -5 -5 -5 -4 -4 -4 -4 -3 -3 -3 -2 -2 -2 ------- Run | Yrd Mat Min Mat Min Exi Min Mat Gar Mat Gar Fac Was Fac Gar Sto Fac Gar Fac Ext Cet Arc Hub Fac Was Fac Gar Fac Gar Fac Gar Fac Gar Res Qua Gar Res Tes Frg Maximum Alert Level 4 | . . . 2 1 . . 2 4 2 2 1 . . 3 2 2 3 2 2 2 1 1 . . 2 3 2 2 2 2 1 3 1 . 2 1 . 1 Low Security (%) 53 | 100 100 100 55 47 . 100 67 . 15 36 83 100 100 23 51 58 . 43 59 . 91 61 100 100 21 . 74 65 35 . 64 31 72 100 53 84 100 60 Level 1 20 | . . . 10 52 . . 29 11 6 35 16 . . 7 19 26 8 33 26 62 8 38 . . 8 23 2 26 61 23 36 30 27 . 21 15 . 39 Level 2 21 | . . . 34 . . . 2 47 78 27 . . . 37 28 14 54 23 13 37 . . . . 70 29 22 8 2 76 . 31 . . 25 . . . Level 3 4 | . . . . . . . . 34 . . . . . 31 . . 36 . . . . . . . . 46 . . . . . 6 . . . . . . Level 4 . | . . . . . . . . 6 . . . . . . . . . . . . . . . . . . . . . . . . . . . . . . Level 5 . | . . . . . . . . . . . . . . . . . . . . . . . . . . . . . . . . . . . . . . . High Security . | . . . . . . . . . . . . . . . . . . . . . . . . . . . . . . . . . . . . . . . Max Security . | . . . . . . . . . . . . . . . . . . . . . . . . . . . . . . . . . . . . . . . Peak Influence 1217 | . 45 . 638 244 . 102 406 1217 640 623 326 18 108 1015 478 547 958 502 513 484 225 382 168 52 537 979 586 446 494 685 374 706 396 101 558 297 94 398 Initial 592 | . . . . 244 . . . 261 592 47 326 18 . 32 460 31 380 497 2 239 154 . 165 51 . 284 513 . 233 306 359 25 396 . 20 297 33 . Average 249 | . 5 . 221 200 . 36 143 728 431 308 93 . 11 576 250 185 642 229 203 376 93 147 129 7 354 600 179 189 205 462 168 330 107 18 256 125 19 159 Influence Increases 22196 | . 96 . 1185 . . 132 1287 1056 437 765 277 . 210 1163 507 957 788 428 1231 406 161 1583 113 70 689 925 287 696 1057 559 535 921 92 468 848 831 366 1070 Destroy 0b10 Robot/C 8980 | . 40 . 660 . . 100 780 500 260 460 160 . 160 440 180 540 340 260 520 180 60 440 . . 280 340 100 100 320 120 140 280 . 180 300 340 160 240 Destroy 0b10 Robot/NC 705 | . 10 . 105 . . . 90 . 50 . 40 . . . 15 30 . 20 50 10 5 65 5 . 45 5 5 15 35 . 5 15 5 35 . 20 5 20 Destroy Leader 1520 | . 12 . 200 . . 20 186 30 92 40 42 . 30 30 92 124 20 50 34 10 . 136 . . 44 10 22 10 70 20 30 20 . 32 40 52 20 2 Allied During Kill 3074 | . . . . . . . . . . . 6 . . 52 48 7 23 17 574 200 65 453 3 . 192 159 88 100 226 44 139 74 4 40 184 228 15 133 Trap Triggered on 0b10 20 | . . . . . . . . . . . . . . . . . . . . . . . . . . . . . . . 20 . . . . . . . Successful Hack 575 | . 19 . 38 . . . 26 38 14 26 26 . . . 16 30 . 9 12 . . 33 . . 14 . . . 41 14 35 . 62 62 12 5 43 . Select Force Hacks 180 | . . . 60 . . . 30 . . . . . . . . 30 . . . . . . . . . . . . . . 30 . . 30 . . . . Disable Machine 1380 | . 15 . 30 . . . 30 . . . . . . . 105 105 . 30 . . 30 165 75 . 30 15 60 60 135 15 60 . 15 45 . 30 90 240 Anti-Garrison Action 3450 | . . . . . . . . 350 . 200 . . . 450 . . 300 . . . . 150 . . . 350 . 400 150 300 . 500 . . 300 . . . Destroy Structure 1667 | . . . 17 . . 12 55 108 6 39 3 . 20 86 51 46 . 42 26 6 1 141 30 70 84 16 12 11 50 46 76 17 6 14 12 141 3 420 Partial Spotted 30 | . . . . . . . . . . . . . . . . . . . . . . . . . . 15 . . . . . . . . . . 15 . Lose Combat Pursuer 615 | . . . 75 . . . 90 30 15 . . . . 105 . 45 105 . 15 . . . . . . 15 . . 30 . . 15 . 30 . 15 15 15 Influence Decreases 22196 | . 96 . 558 473 154 132 884 242 1581 215 847 53 164 264 1382 484 383 1370 809 447 548 1244 304 218 282 353 1266 250 1065 312 1184 251 798 441 347 1300 425 1070 Entered New Map 5356 | . . . . 383 154 . . 142 625 26 297 35 . 14 485 39 163 451 4 189 233 . 174 97 . 123 466 . 213 132 326 11 310 . 7 231 26 . Time Decay 9303 | . 96 . 538 90 . 132 714 . 646 . 505 18 46 . 577 398 . 530 435 238 255 484 130 96 220 . 360 . 392 . 398 . 159 351 . 562 353 580 Lost Part 657 | . . . 20 . . . 20 100 10 10 . . 10 100 20 30 20 12 10 . . 20 . 5 . . . . . . . 30 . 20 10 . . 210 Lost Ally 3756 | . . . . . . . . . . . . . . 150 150 17 200 51 60 20 60 290 . 20 62 230 140 250 460 180 160 210 54 70 330 266 46 280 Purge Threat 3124 | . . . . . . . 150 . 300 179 45 . 108 . 150 . . 326 300 . . 450 . . . . 300 . . . 300 . 275 . . 241 . . Squads Dispatched 136 | . . . 5 . . . 6 . 6 . 5 . 3 . 12 12 . 7 4 1 . 9 . . 4 . 7 . 11 . 6 . 9 8 . 9 4 8 Investigation 32 | . . . 4 . . . 4 . 1 . . . . . 4 4 . 2 3 1 . . . . 1 . 1 . 1 . 1 . 1 2 . 2 . . Extermination 33 | . . . . . . . . . . . 3 . 1 . 4 2 . 2 . . . 3 . . 1 . 1 . 2 . 2 . . 3 . 4 2 3 Reinforcement 42 | . . . 1 . . . 1 . 1 . 2 . 1 . 4 3 . 3 1 . . 3 . . 2 . 2 . 5 . 1 . 5 . . 2 2 3 Assault 7 | . . . . . . . . . . . . . . . . 3 . . . . . 2 . . . . . . 2 . . . . . . . . . Garrison 22 | . . . . . . . 1 . 4 . . . 1 . . . . . . . . 1 . . . . 3 . 1 . 2 . 3 3 . 1 . 2 Intercept . | . . . . . . . . . . . . . . . . . . . . . . . . . . . . . . . . . . . . . . . Searches Triggered . | . . . . . . . . . . . . . . . . . . . . . . . . . . . . . . . . . . . . . . . Construction Impeded 4 | . . . . . . . . . . . . . . . 1 . . . 1 . . . . . 1 . . . 1 . . . . . . . . . Haulers Reinforced 8 | . . . . . . . . . . . 1 . . . 2 1 . . . . . . . . 1 . . . 2 . . . 1 . . . . . Active Scanning Responses . | . . . . . . . . . . . . . . . . . . . . . . . . . . . . . . . . . . . . . . . Cargo Convoy Interrupts 2 | . . . . . . . . . . . . . . . . 1 . . . . . . . . . . . . 1 . . . . . . . . . Alert ID Control Effect 310 | . . . . . . . . . . . . . . 9 18 4 7 8 5 . 1 12 9 . . 14 22 26 33 9 19 16 9 8 12 21 8 40 Stealth | -11 -10 -10 -9 -9 -9 -8 -8 -8 -8 -8 -7 -7 -7 -7 -7 -6 -6 -6 -6 -6 -6 -6 -5 -5 -5 -5 -5 -5 -4 -4 -4 -4 -3 -3 -3 -2 -2 -2 --------- Run | Yrd Mat Min Mat Min Exi Min Mat Gar Mat Gar Fac Was Fac Gar Sto Fac Gar Fac Ext Cet Arc Hub Fac Was Fac Gar Fac Gar Fac Gar Fac Gar Res Qua Gar Res Tes Frg Distress Signals 37 | . . . 1 . . . 7 . 3 . . . . . 6 1 . 1 2 2 . 2 . . . . 1 . 2 . . . 8 . . . . 1 Communications Jammed 781 | . . . . . . . . . . . . . . . . . . . . . . . . . . . . . 88 . 239 46 . 66 . 76 43 223 Distress Signals 769 | . . . . . . . . . . . . . . . . . . . . . . . . . . . . . 87 . 239 46 . 66 . 76 43 212 Times Spotted 1078 | . 4 1 54 . . 5 65 28 18 15 12 5 9 52 37 42 45 32 32 11 6 44 7 16 9 37 26 50 67 35 21 48 13 33 49 57 31 62 Peak Tracking Total 12 | . 2 2 5 . . 4 4 7 3 4 2 2 3 6 3 11 6 5 6 5 2 5 4 5 4 6 4 8 12 5 4 5 3 5 5 9 4 6 Tactical Retreats 40 | . . . 5 . . . 5 1 1 . . . . 7 . 3 4 . 1 . . . . 5 . 1 . . 1 . . 1 . 2 . 1 1 1 Traps | -11 -10 -10 -9 -9 -9 -8 -8 -8 -8 -8 -7 -7 -7 -7 -7 -6 -6 -6 -6 -6 -6 -6 -5 -5 -5 -5 -5 -5 -4 -4 -4 -4 -3 -3 -3 -2 -2 -2 ------- Run | Yrd Mat Min Mat Min Exi Min Mat Gar Mat Gar Fac Was Fac Gar Sto Fac Gar Fac Ext Cet Arc Hub Fac Was Fac Gar Fac Gar Fac Gar Fac Gar Res Qua Gar Res Tes Frg Traps Triggered 69 | . . . 3 . . . 1 9 . 2 1 . 3 5 1 1 3 1 . . . 2 1 . . 2 . 13 1 2 . 4 . 1 4 . 4 5 Indirectly . | . . . . . . . . . . . . . . . . . . . . . . . . . . . . . . . . . . . . . . . Trap Hack Attempts 33 | . . . . . . . . . . . . . . . . . . . . . . . . . . . . . . . . . . . . . . 33 Triggered . | . . . . . . . . . . . . . . . . . . . . . . . . . . . . . . . . . . . . . . . Disarmed . | . . . . . . . . . . . . . . . . . . . . . . . . . . . . . . . . . . . . . . . Reprogrammed 5 | . . . . . . . . . . . . . . . . . . . . . . . . . . . . . . . 4 . . . . . . 1 Reused 2 | . . . . . . . . . . . . . . . . . . . . . . . . . . . . . . . 2 . . . . . . . Traps Extracted . | . . . . . . . . . . . . . . . . . . . . . . . . . . . . . . . . . . . . . . . Installed . | . . . . . . . . . . . . . . . . . . . . . . . . . . . . . . . . . . . . . . . Triggered 2 | . . . . . . . . . . . . . . . . . . . . . . . . . . . . . . . 2 . . . . . . . Machines | -11 -10 -10 -9 -9 -9 -8 -8 -8 -8 -8 -7 -7 -7 -7 -7 -6 -6 -6 -6 -6 -6 -6 -5 -5 -5 -5 -5 -5 -4 -4 -4 -4 -3 -3 -3 -2 -2 -2 ---------- Run | Yrd Mat Min Mat Min Exi Min Mat Gar Mat Gar Fac Was Fac Gar Sto Fac Gar Fac Ext Cet Arc Hub Fac Was Fac Gar Fac Gar Fac Gar Fac Gar Res Qua Gar Res Tes Frg Machines Disabled 141 | . 1 . 2 . . . 2 3 . 2 . . . 5 7 7 5 2 2 . 2 12 5 . 2 6 4 8 14 5 4 5 1 3 5 2 6 19 Max in Single Turn 6 | . 1 . 1 . . . 1 1 . 1 . . . 1 1 3 1 2 1 . . 6 . . . 1 1 1 4 1 1 1 . 1 1 1 1 2 Garrison Access 8 | . . . . . . . . . . . 2 . . . . 1 . 1 . . . 1 . . . . . . 1 . . . . . . 1 1 . Garrison Relay 36 | . . . . . . . . 3 . 2 . . . 5 . . 4 . . . . . . . . 5 . 4 . 4 . 5 . . 4 . . . Network Hub 3 | . . . . . . . . . . . . . . . . . . . . . . 3 . . . . . . . . . . . . . . . . Machines Repaired . | . . . . . . . . . . . . . . . . . . . . . . . . . . . . . . . . . . . . . . . Machines Dismantled . | . . . . . . . . . . . . . . . . . . . . . . . . . . . . . . . . . . . . . . . Machines Sabotaged . | . . . . . . . . . . . . . . . . . . . . . . . . . . . . . . . . . . . . . . . Overloaded Fab Kills . | . . . . . . . . . . . . . . . . . . . . . . . . . . . . . . . . . . . . . . . Hacking | -11 -10 -10 -9 -9 -9 -8 -8 -8 -8 -8 -7 -7 -7 -7 -7 -6 -6 -6 -6 -6 -6 -6 -5 -5 -5 -5 -5 -5 -4 -4 -4 -4 -3 -3 -3 -2 -2 -2 --------- Run | Yrd Mat Min Mat Min Exi Min Mat Gar Mat Gar Fac Was Fac Gar Sto Fac Gar Fac Ext Cet Arc Hub Fac Was Fac Gar Fac Gar Fac Gar Fac Gar Res Qua Gar Res Tes Frg Machines Accessed 137 | . 4 . 12 . 2 . 13 3 6 1 5 . 1 3 9 6 1 4 10 1 . 6 . . 2 3 3 . 3 3 7 4 3 9 1 5 5 2 Terminals 102 | . 4 . 9 . . . 10 3 4 1 2 . . 3 8 3 1 2 10 1 . 6 . . . 3 1 . 1 3 4 4 3 8 1 2 3 2 Fabricators 7 | . . . . . . . . . . . 1 . . . . 1 . . . . . . . . 1 . 1 . 1 . 1 . . . . 1 . . Repair Stations 7 | . . . 1 . . . 1 . . . . . . . 1 1 . . . . . . . . . . . . . . 1 . . . . 1 1 . Recycling Units 4 | . . . 2 . . . 1 . . . . . . . . . . 1 . . . . . . . . . . . . . . . . . . . . Scanalyzers 1 | . . . . . . . . . 1 . . . . . . . . . . . . . . . . . . . . . . . . . . . . . Garrison Access 14 | . . . . . . . 1 . 1 . 2 . 1 . . 1 . 1 . . . . . . 1 . 1 . 1 . 1 . . 1 . 1 1 . Total Hacks 384 | . 12 . 32 . 2 . 40 7 17 3 10 . 2 6 19 12 2 10 19 2 . 14 . . 4 10 13 . 5 12 32 17 11 36 7 17 8 3 Successful 162 | . 7 . 16 . 2 . 15 3 9 2 6 . 2 1 8 7 . 7 7 . . 7 . . 4 1 8 . 4 2 14 2 4 12 2 6 3 1 Failed 221 | . 5 . 15 . . . 25 4 8 1 4 . . 5 11 5 2 3 12 2 . 7 . . . 9 5 . 1 10 18 15 7 24 5 11 5 2 Catastrophic 57 | . 2 . . . . . 4 2 2 . 1 . . 4 5 2 . . 2 . . . . . . 2 2 . 1 2 5 3 3 9 1 3 2 . Database Lockouts 1 | . . . 1 . . . . . . . . . . . . . . . . . . . . . . . . . . . . . . . . . . . Manual 181 | . 10 . 24 . 1 . 29 2 8 2 . . . . 6 4 . 8 5 1 . 11 . . . 3 7 . 1 . 13 3 5 16 3 13 5 1 Terminals 306 | . 12 . 27 . . . 33 7 9 3 7 . . 6 13 6 2 6 19 2 . 14 . . . 10 6 . 2 12 25 17 11 33 7 9 5 3 Fabricators 17 | . . . . . . . . . . . 1 . . . . 2 . . . . . . . . 2 . 5 . 2 . 2 . . . . 3 . . Repair Stations 21 | . . . 2 . . . 5 . . . . . . . 6 2 . . . . . . . . . . . . . . 2 . . . . 2 2 . Recycling Units 5 | . . . 3 . . . 1 . . . . . . . . . . 1 . . . . . . . . . . . . . . . . . . . . Scanalyzers 4 | . . . . . . . . . 4 . . . . . . . . . . . . . . . . . . . . . . . . . . . . . Garrison Access 29 | . . . . . . . 1 . 4 . 2 . 2 . . 2 . 3 . . . . . . 2 . 2 . 1 . 3 . . 3 . 3 1 . Terminal Hacks 66 | . 2 . 5 . 2 . 4 3 3 2 3 . . 1 5 . . 3 7 . . 2 . . . 1 2 . . 2 5 2 3 6 1 . 1 1 Record 2 | . . . . . 1 . . . . . . . . . 1 . . . . . . . . . . . . . . . . . . . . . . . Robot Schematic 2 | . 1 . . . . . . . . . . . . . . . . . . . . . . . . . . . . . . . . 1 . . . . Robot Analysis 1 | . . . 1 . . . . . . . . . . . . . . . . . . . . . . . . . . . . . . . . . . . Prototype ID Bank 4 | . 1 . 2 . . . 1 . . . . . . . . . . . . . . . . . . . . . . . . . . . . . . . Open Door 11 | . . . . . . . . . . . . . . 1 3 . . 1 4 . . . . . . . . . . . . 1 1 . . . . . Level Access Points 1 | . . . . . . . . . . . 1 . . . . . . . . . . . . . . . . . . . . . . . . . . . Branch Access Points 3 | . . . . . . . . . . . 1 . . . . . . 1 . . . . . . . . . . . . . . 1 . . . . . Emergency Access Points 3 | . . . . . . . . 1 . . . . . . . . . . . . . . . . . 1 . . . . . 1 . . . . . . Terminal Index 3 | . . . . . . . . . . . . . . . . . . . . . . . . . . . . . . . 1 . 1 . . . 1 . Alert Level 2 | . . . . . . . 1 . 1 . . . . . . . . . . . . . . . . . . . . . . . . . . . . . Unreport Threat 13 | . . . . . . . 1 . 2 . 1 . . . 1 . . 1 2 . . 2 . . . . 2 . . . 1 . . . . . . . Locate Traps 2 | . . . 1 . . . 1 . . . . . . . . . . . . . . . . . . . . . . . . . . . . . . . Reprogram Traps 2 | . . . . . . . . . . . . . . . . . . . . . . . . . . . . . . . 2 . . . . . . . Dispatch Records 1 | . . . . . . . . . . . . . . . . . . . . . . . . . . . . . . . . . . 1 . . . . Patrol Status 1 | . . . . . . . . . . . . . . . . . . . . . . . . . . . . . . . . . . 1 . . . . Recall Investigation 2 | . . . . . . . . . . . . . . . . . . . 1 . . . . . . . . . . . . . . 1 . . . . Registered Prototypes 1 | . . . 1 . . . . . . . . . . . . . . . . . . . . . . . . . . . . . . . . . . . Zone Layout 3 | . . . . . . . . . . . . . . . . . . . . . . . . . . . . . . . 1 . . 2 . . . . Garrison Registry 4 | . . . . . . . . 1 . 1 . . . . . . . . . . . . . . . . . . . 1 . . . . 1 . . . Patrol Navigation 3 | . . . . . . . . 1 . 1 . . . . . . . . . . . . . . . . . . . 1 . . . . . . . . Proto ID Catalog 2 | . . . . . 1 . . . . . . . . . . . . . . . . . . . . . . . . . . . . . . . . 1 Fabricator Hacks 14 | . . . . . . . . . . . 1 . . . . 2 . . . . . . . . 2 . 3 . 2 . 2 . . . . 2 . . Network Status 1 | . . . . . . . . . . . 1 . . . . . . . . . . . . . . . . . . . . . . . . . . . Load Schematic 6 | . . . . . . . . . . . . . . . . 1 . . . . . . . . 1 . 1 . 1 . 1 . . . . 1 . . Build 7 | . . . . . . . . . . . . . . . . 1 . . . . . . . . 1 . 2 . 1 . 1 . . . . 1 . . Repair Station Hacks 9 | . . . 2 . . . 2 . . . . . . . 3 2 . . . . . . . . . . . . . . . . . . . . . . Scan Component 5 | . . . 1 . . . 1 . . . . . . . 2 1 . . . . . . . . . . . . . . . . . . . . . . Repair 4 | . . . 1 . . . 1 . . . . . . . 1 1 . . . . . . . . . . . . . . . . . . . . . . Recycling Unit Hacks . | . . . . . . . . . . . . . . . . . . . . . . . . . . . . . . . . . . . . . . . Scanalyzer 4 | . . . . . . . . . 4 . . . . . . . . . . . . . . . . . . . . . . . . . . . . . Insert Component 2 | . . . . . . . . . 2 . . . . . . . . . . . . . . . . . . . . . . . . . . . . . Analyze 2 | . . . . . . . . . 2 . . . . . . . . . . . . . . . . . . . . . . . . . . . . . Garrison Access Hacks 19 | . . . . . . . 1 . 1 . 2 . 2 . . 1 . 1 . . . . . . 2 . 1 . 1 . 2 . . 2 . 2 1 . Unlock Access 9 | . . . . . . . 1 . 1 . . . 1 . . 1 . . . . . . . . 1 . 1 . 1 . 1 . . 1 . . . . Seal Access 5 | . . . . . . . . . . . 2 . . . . . . 1 . . . . . . . . . . . . . . . . . 1 1 . Coupler Status 5 | . . . . . . . . . . . . . 1 . . . . . . . . . . . 1 . . . . . 1 . . 1 . 1 . . Unauthorized Hacks 50 | . 5 . 9 . . . 8 . 1 . . . . . . 2 . 3 . . . 5 . . . . 2 . 1 . 5 . 1 4 1 2 1 . Terminals 39 | . 5 . 7 . . . 7 . 1 . . . . . . 1 . 1 . . . 5 . . . . 1 . 1 . 3 . 1 3 1 1 1 . Track 2 | . . . . . . . . . . . . . . . . . . . . . . . . . . . . . . . . . . 2 . . . . Assimilate 5 | . . . . . . . 1 . 1 . . . . . . . . . . . . 3 . . . . . . . . . . . . . . . . Botnet 8 | . 1 . 2 . . . . . . . . . . . . . . . . . . 1 . . . . . . . . 1 . 1 1 1 . . . Disrupt 1 | . . . . . . . . . . . . . . . . . . . . . . . . . . . . . . . 1 . . . . . . . Operators 8 | . . . . . . . . . . . . . . . . 1 . 1 . . . 1 . . . . 1 . 1 . 1 . . . . 1 1 . Skim 15 | . 4 . 5 . . . 6 . . . . . . . . . . . . . . . . . . . . . . . . . . . . . . . Fabricators . | . . . . . . . . . . . . . . . . . . . . . . . . . . . . . . . . . . . . . . . Repair Stations 1 | . . . . . . . . . . . . . . . . . . . . . . . . . . . . . . . 1 . . . . . . . Mechanics 1 | . . . . . . . . . . . . . . . . . . . . . . . . . . . . . . . 1 . . . . . . . Recycling Units 4 | . . . 2 . . . 1 . . . . . . . . . . 1 . . . . . . . . . . . . . . . . . . . . Recyclers 1 | . . . . . . . . . . . . . . . . . . 1 . . . . . . . . . . . . . . . . . . . . Tunnel 3 | . . . 2 . . . 1 . . . . . . . . . . . . . . . . . . . . . . . . . . . . . . . Scanalyzers . | . . . . . . . . . . . . . . . . . . . . . . . . . . . . . . . . . . . . . . . Garrison Access 6 | . . . . . . . . . . . . . . . . 1 . 1 . . . . . . . . 1 . . . 1 . . 1 . 1 . . Restock 3 | . . . . . . . . . . . . . . . . . . 1 . . . . . . . . 1 . . . . . . . . 1 . . Eject 3 | . . . . . . . . . . . . . . . . 1 . . . . . . . . . . . . . . 1 . . 1 . . . . Data Cores Recovered 2 | . . . . . . . . . . . . . . . . . . 1 . . . 1 . . . . . . . . . . . . . . . . Used . | . . . . . . . . . . . . . . . . . . . . . . . . . . . . . . . . . . . . . . . Hacking Detections 105 | . 4 . 9 . . . 11 3 5 1 3 . 1 2 6 4 1 2 7 1 . 6 . . 2 3 2 . 3 2 5 3 2 8 1 4 4 . Full Trace Events 19 | . . . . . . . 2 . 1 . . . . 2 2 2 . . 2 1 . . . . 1 . 1 . 1 . . 1 . 1 . 2 . . Feedback Events 1 | . . . . . . . . . . . . . . . . . . . . . . . . . . . . . . . . 1 . . . . . . Corruption 1 | . . . . . . . . . . . . . . . . . . . . . . . . . . . . . . . . 1 . . . . . . Feedback Blocked . | . . . . . . . . . . . . . . . . . . . . . . . . . . . . . . . . . . . . . . . Robot Schematics Acquired 7 | . 1 . . . . . . . . . . . . . . . . . . . . . . . . . . . . . . . . 3 . . 3 . Robots Built 6 | . . . . . . . . . . . . . . . . 1 . . . . . . . . 1 . 1 . 1 . 1 . . . . 1 . . Authchips 1 | . . . . . . . . . . . . . . . . . . . . . . . . . . . . . . . 1 . . . . . . . Time 443 | . . . . . . . . . . . . . . . . 40 . . . . . . . . 40 . 215 . 40 . 27 . . . . 81 . . Total Robot Build Rating 6 | . . . . . . . . . . . . . . . . 1 . . . . . . . . 1 . 1 . 1 . 1 . . . . 1 . . Part Schematics Acquired 14 | . . . . . . . . . 2 . . . . . . . . . . . . . . . . . . . . . . . . 3 . . 3 6 Parts Built . | . . . . . . . . . . . . . . . . . . . . . . . . . . . . . . . . . . . . . . . Authchips . | . . . . . . . . . . . . . . . . . . . . . . . . . . . . . . . . . . . . . . . Time . | . . . . . . . . . . . . . . . . . . . . . . . . . . . . . . . . . . . . . . . Total Part Build Rating . | . . . . . . . . . . . . . . . . . . . . . . . . . . . . . . . . . . . . . . . Parts Repaired 4 | . . . 1 . . . 1 . . . . . . . 1 1 . . . . . . . . . . . . . . . . . . . . . . Time 182 | . . . 32 . . . 16 . . . . . . . 78 56 . . . . . . . . . . . . . . . . . . . . . . Parts Recycled . | . . . . . . . . . . . . . . . . . . . . . . . . . . . . . . . . . . . . . . . Recycled Matter . | . . . . . . . . . . . . . . . . . . . . . . . . . . . . . . . . . . . . . . . Retrieved Matter . | . . . . . . . . . . . . . . . . . . . . . . . . . . . . . . . . . . . . . . . Retrieved Components . | . . . . . . . . . . . . . . . . . . . . . . . . . . . . . . . . . . . . . . . Parts Scanalyzed 2 | . . . . . . . . . 2 . . . . . . . . . . . . . . . . . . . . . . . . . . . . . Part Schematics Acquired 2 | . . . . . . . . . 2 . . . . . . . . . . . . . . . . . . . . . . . . . . . . . Parts Damaged . | . . . . . . . . . . . . . . . . . . . . . . . . . . . . . . . . . . . . . . . Bothacking | -11 -10 -10 -9 -9 -9 -8 -8 -8 -8 -8 -7 -7 -7 -7 -7 -6 -6 -6 -6 -6 -6 -6 -5 -5 -5 -5 -5 -5 -4 -4 -4 -4 -3 -3 -3 -2 -2 -2 ------------ Run | Yrd Mat Min Mat Min Exi Min Mat Gar Mat Gar Fac Was Fac Gar Sto Fac Gar Fac Ext Cet Arc Hub Fac Was Fac Gar Fac Gar Fac Gar Fac Gar Res Qua Gar Res Tes Frg Used RIF Installer 12 | . . . . . . . . 1 . 2 . . . 2 . . 1 . . . . . . . . 1 . 1 . 2 . 1 . . 1 . . . Coupler Efficiency 2 | . . . . . . . . . . 1 . . . . . . . . . . . . . . . . . . . . . 1 . . . . . . Command Fork 1 | . . . . . . . . . . . . . . 1 . . . . . . . . . . . . . . . . . . . . . . . . Signal Jammer 1 | . . . . . . . . . . . . . . . . . . . . . . . . . . 1 . . . . . . . . . . . . Zone Cloak 2 | . . . . . . . . . . . . . . . . . 1 . . . . . . . . . . . . 1 . . . . . . . . Watcher Feeds 1 | . . . . . . . . . . . . . . . . . . . . . . . . . . . . . . 1 . . . . . . . . Alert ID Control 1 | . . . . . . . . . . 1 . . . . . . . . . . . . . . . . . . . . . . . . . . . . Structural Interface 1 | . . . . . . . . . . . . . . 1 . . . . . . . . . . . . . . . . . . . . . . . . Autoassimilate 1 | . . . . . . . . . . . . . . . . . . . . . . . . . . . . . . . . . . . 1 . . . Crosswire 1 | . . . . . . . . . . . . . . . . . . . . . . . . . . . . 1 . . . . . . . . . . Robots Hacked 307 | . . . . . . . . . . 1 2 6 1 16 14 8 14 12 1 . 1 9 . . . 13 9 26 18 25 8 18 4 19 20 21 15 26 Non-combat 49 | . . . . . . . . . . 1 2 . 1 . 6 3 . 4 . . . 2 . . . . 2 . 6 . 4 2 2 5 . 4 2 3 Combat 258 | . . . . . . . . . . . . 6 . 16 8 5 14 8 1 . 1 7 . . . 13 7 26 12 25 4 16 2 14 20 17 13 23 Autoassimilated 17 | . . . . . . . . . . . . . . . . . . . . . . . . . . . . . . . . . . . . 8 . 9 Robot Hacks Applied 327 | . . . . . . . . . . 3 2 6 2 18 16 9 15 15 1 . 1 9 . . . 14 11 30 19 27 10 20 6 20 20 16 16 21 parse_system 18 | . . . . . . . . . . . . . . 3 . 1 1 . . . . 1 . . . . . 4 1 1 . . . . . . 1 5 no_distress 1 | . . . . . . . . . . . . . . . 1 . . . . . . . . . . . . . . . . . . . . . . . find_chute 1 | . . . . . . . . . . . 1 . . . . . . . . . . . . . . . . . . . . . . . . . . . drop_inventory 18 | . . . . . . . . . . . . . . . 5 2 . 1 . . . . . . . . 1 . 2 . 2 . . 2 . 1 2 . purge_threat 11 | . . . . . . . . . . 2 . . 1 . . . . 2 . . . 1 . . . . . . . . 1 . 2 . . 2 . . block_reporting 5 | . . . . . . . . . . . . . . . . . . . . . . . . . . . . . . . . . . 2 . . . 3 recall_investigation 1 | . . . . . . . . . . . . . . . . . . . . . . . . . . . 1 . . . . . . . . . . . map_route 1 | . . . . . . . . . . . . . . . . . . . . . . . . . . . . . . . . . . . . 1 . . disable_scanner 5 | . . . . . . . . . . . . . . . . . . . . . . . . . . . . . . . . . . 3 . . 2 . ignore_targets 6 | . . . . . . . . . . . . 6 . . . . . . . . . . . . . . . . . . . . . . . . . . find_shortcuts 1 | . . . . . . . . . . . . . . 1 . . . . . . . . . . . . . . . . . . . . . . . . find_garrison 4 | . . . . . . . . . . . . . . . . 1 . . . . . . . . . . . . 2 . 1 . . . . . . . link_fov 2 | . . . . . . . . . . . . . . . . . . . . . . . . . . . . . . 1 . 1 . . . . . . focus_fire 1 | . . . . . . . . . . . . . . . . . . . . . . . . . . . . . . 1 . . . . . . . . scatter_targeting 1 | . . . . . . . . . . . . . . . . . . . . . . . . . . . . 1 . . . . . . . . . . mark_system 1 | . . . . . . . . . . . . . . . . . . 1 . . . . . . . . . . . . . . . . . . . . link_complan 1 | . . . . . . . . . . . . . . . . . 1 . . . . . . . . . . . . . . . . . . . . . disrupt_area 2 | . . . . . . . . . . . . . . . . . . . . . . . . . . . . . . . . 1 . . . . . 1 overload_power 2 | . . . . . . . . . . . . . . . . . . . . . . . . . . . . 1 . . . . . . 1 . . . amplify_resonance 46 | . . . . . . . . . . . . . . 4 2 3 3 2 . . . . . . . 4 . 3 4 4 1 5 . 1 1 4 3 2 disable_weapons 4 | . . . . . . . . . . . . . . . 1 . . . . . . . . . . 1 . 1 . . . . . . . 1 . . reboot_system 1 | . . . . . . . . . . . . . . . . . . . . . . 1 . . . . . . . . . . . . . . . . overwrite_iff 38 | . . . . . . . . . . . . . . 1 1 1 5 4 . . 1 . . . . 3 2 5 2 3 1 3 . 1 1 1 2 1 formatsys_low 25 | . . . . . . . . . . 1 1 . 1 . 1 1 . 3 . . . . . . . . 2 1 2 . 1 . 2 4 . 2 2 1 formatsys_high 131 | . . . . . . . . . . . . . . 9 5 . 5 2 1 . . 6 . . . 6 5 14 6 17 3 10 2 7 17 4 4 8 Relay Couplers Released 184 | . . . . . . . . 11 . 10 . . . 24 . 3 18 5 . . . 2 . . . 20 7 16 1 16 4 21 . 4 17 5 . . Ejected 9 | . . . . . . . . . . . . . . . . 1 . . . . . . . . . . . . . . 4 . . 4 . . . . Machine Destruction 162 | . . . . . . . . 11 . 10 . . . 24 . 2 18 2 . . . 2 . . . 20 . 16 1 16 . 21 . . 17 2 . . Programmers 13 | . . . . . . . . . . . . . . . . . . 3 . . . . . . . . 7 . . . . . . . . 3 . . Attached 120 | . . . . . . . . . . 1 1 . 1 10 4 1 9 6 . . . 5 . 4 . 5 3 9 4 11 2 9 1 4 11 5 3 11 Crosswired 31 | . . . . . . . . . . . . . . . . . . . . . . . . . . . . 7 . 6 1 7 . 3 5 2 . . Fabnet Peak Effective % . | . . . . . . . . . . . . . . . . . . . . . . . . . . . . . . . . . . . . . . . Robots Rewired 59 | . . . . . . . . . . 2 . . . 3 . . 3 . 20 . . . . . . 8 . 10 . . . 3 . . 10 . . . Allies Hacked 29 | . . . . . . . . . . . 2 . . . 1 . . . . . . . . . . 1 3 4 4 . 1 1 . 4 1 3 3 1 Hacks Repelled . | . . . . . . . . . . . . . . . . . . . . . . . . . . . . . . . . . . . . . . . Allies | -11 -10 -10 -9 -9 -9 -8 -8 -8 -8 -8 -7 -7 -7 -7 -7 -6 -6 -6 -6 -6 -6 -6 -5 -5 -5 -5 -5 -5 -4 -4 -4 -4 -3 -3 -3 -2 -2 -2 -------- Run | Yrd Mat Min Mat Min Exi Min Mat Gar Mat Gar Fac Was Fac Gar Sto Fac Gar Fac Ext Cet Arc Hub Fac Was Fac Gar Fac Gar Fac Gar Fac Gar Res Qua Gar Res Tes Frg Total Allies 339 | . . . . . . . . . 1 2 1 . 1 13 17 4 13 13 26 5 1 6 . 18 1 20 12 31 12 23 6 18 4 14 31 19 8 19 Largest Group 22 | . . . . . . . . . 1 3 3 2 1 9 13 4 3 6 19 22 20 17 3 18 9 10 10 19 20 12 11 9 11 9 20 10 3 7 Highest-Rated Group 1193 | . . . . . . . . . 26 54 54 49 10 184 253 107 129 128 726 1119 1057 829 314 656 349 389 452 833 847 675 628 424 497 388 1193 633 496 692 Highest-Rated Ally 344 | . . . . . . . . . 26 26 26 26 10 39 32 32 43 32 159 159 159 110 110 110 50 80 80 99 116 116 116 116 64 64 119 119 344 344 Total Orders 72 | . . . . . . . . . 4 6 1 1 . 6 1 6 . 7 . . . 1 . . 1 1 1 2 2 . 2 4 3 5 5 7 . 6 STAY 23 | . . . . . . . . . 2 3 . . . 5 . . . . . . . 1 . . . 1 . 1 . . . 1 . 2 2 1 . 4 ROAM 1 | . . . . . . . . . . . . . . . . . . . . . . . . . . . . . . . . . . . . . . 1 FOLLOW 13 | . . . . . . . . . 2 3 . . . 1 . . . . . . . . . . . . . 1 . . . 1 . 1 2 1 . 1 AID 17 | . . . . . . . . . . . 1 1 . . 1 2 . 1 . . . . . . 1 . 1 . 2 . 1 1 1 2 1 1 . . DROP 2 | . . . . . . . . . . . . . . . . . . 1 . . . . . . . . . . . . 1 . . . . . . . PICKUP 1 | . . . . . . . . . . . . . . . . . . . . . . . . . . . . . . . . 1 . . . . . . EXPLORE 9 | . . . . . . . . . . . . . . . . 2 . 3 . . . . . . . . . . . . . . 1 . . 3 . . RETURN 6 | . . . . . . . . . . . . . . . . 2 . 2 . . . . . . . . . . . . . . 1 . . 1 . . Ally Attacks 2351 | . . . . . . . . . . . 3 . . 73 119 29 57 41 175 47 35 186 16 93 46 126 107 127 229 55 92 80 63 44 145 126 39 198 Total Damage 72363 | . . . . . . . . . . . 130 . . 1176 2277 519 1314 1010 4293 978 1083 3851 1167 6189 2751 2970 3239 3820 5879 1714 2708 2711 1800 1311 3847 4534 1273 9819 Kills 484 | . . . . . . . . . . . 1 . . 18 20 4 10 8 38 9 3 30 9 15 21 27 27 30 40 10 21 19 11 8 24 30 8 43 Allies Corrupted 24 | . . . . . . . . . . . . 1 . . . . 1 2 . . . . . . . 2 2 2 2 . . . . 1 1 3 1 6 Allies Melted 3 | . . . . . . . . . . . . . . . . . . 1 . . . 1 . . 1 . . . . . . . . . . . . . Intel | -11 -10 -10 -9 -9 -9 -8 -8 -8 -8 -8 -7 -7 -7 -7 -7 -6 -6 -6 -6 -6 -6 -6 -5 -5 -5 -5 -5 -5 -4 -4 -4 -4 -3 -3 -3 -2 -2 -2 ------- Run | Yrd Mat Min Mat Min Exi Min Mat Gar Mat Gar Fac Was Fac Gar Sto Fac Gar Fac Ext Cet Arc Hub Fac Was Fac Gar Fac Gar Fac Gar Fac Gar Res Qua Gar Res Tes Frg Active Infowar (turns) 2 | . . . . . . . . . . . . . . . . . . . . . . . . . 2 . . . . . . . . . . . . . Jamming 2 | . . . . . . . . . . . . . . . . . . . . . . . . . 2 . . . . . . . . . . . . . Robot Analysis Total 1 | . . . 1 . . . . . . . . . . . . . . . . . . . . . . . . . . . . . . . . . . . Derelict Logs Recovered . | . . . . . . . . . . . . . . . . . . . . . . . . . . . . . . . . . . . . . . . Drone Launches 8 | . . . . . . . . . . . . . . . . 2 . 3 . . . . . . . . . . . . . . 1 . . 2 . . Drone Recoveries 8 | . . . . . . . . . . . . . . . . 2 . 3 . . . . . . . . . . . . . . 1 . . 2 . . Exploration | -11 -10 -10 -9 -9 -9 -8 -8 -8 -8 -8 -7 -7 -7 -7 -7 -6 -6 -6 -6 -6 -6 -6 -5 -5 -5 -5 -5 -5 -4 -4 -4 -4 -3 -3 -3 -2 -2 -2 ------------- Run | Yrd Mat Min Mat Min Exi Min Mat Gar Mat Gar Fac Was Fac Gar Sto Fac Gar Fac Ext Cet Arc Hub Fac Was Fac Gar Fac Gar Fac Gar Fac Gar Res Qua Gar Res Tes Frg Turns Passed 51482 | 68 515 112 3635 190 412 413 3783 1809 2346 1301 1539 650 434 1713 1773 1484 1621 1970 1736 513 631 1540 278 913 530 1392 1101 2029 931 1317 950 1940 633 1959 1659 2138 1468 2056 Spaces Moved 20579 | 41 286 71 1247 80 207 163 1269 613 817 454 572 152 145 774 706 605 797 1014 780 171 121 703 110 664 182 572 515 748 410 658 484 729 249 737 630 768 566 769 Core 380 | 6 . . . . . . . . . . . . . . . . . . . . . . . 336 . . . . . . . . . . . . . 38 Treads 20103 | 35 286 71 1247 80 207 163 1269 613 817 454 572 152 145 774 706 605 797 1014 780 171 121 703 110 328 182 572 515 748 410 658 484 729 249 737 630 768 566 635 Legs . | . . . . . . . . . . . . . . . . . . . . . . . . . . . . . . . . . . . . . . . Wheels . | . . . . . . . . . . . . . . . . . . . . . . . . . . . . . . . . . . . . . . . Hover . | . . . . . . . . . . . . . . . . . . . . . . . . . . . . . . . . . . . . . . . Flight 96 | . . . . . . . . . . . . . . . . . . . . . . . . . . . . . . . . . . . . . . 96 Fastest Speed 22 | 50 160 160 160 240 160 240 230 233 243 243 242 240 160 160 160 160 160 160 160 160 160 160 235 50 170 165 165 165 163 163 163 163 235 230 150 230 230 22 Average Speed 199 | 145 160 160 238 240 196 240 232 241 243 243 242 241 216 166 170 184 160 163 160 160 160 172 235 111 170 169 165 231 163 166 163 214 237 232 221 233 230 196 Slowest Speed 450 | 160 160 160 240 240 240 240 240 243 243 243 242 243 240 320 240 243 160 240 240 160 160 235 235 235 170 170 330 245 240 240 163 243 240 235 235 235 230 450 Overloaded Moves . | . . . . . . . . . . . . . . . . . . . . . . . . . . . . . . . . . . . . . . . Propulsion Burnouts . | . . . . . . . . . . . . . . . . . . . . . . . . . . . . . . . . . . . . . . . Robots Hopped 2 | . . . . . . . . . . . . . . . . . . . . . . . . . . . . . . . . . . . . . . 2 Potential Cave-ins 11 | . . . . . . . . . . . . . . . . . . . . . . . . . . . . . . . . . . . . . . 11 Cave-ins Triggered 1 | . . . . . . . . . . . . . . . . . . . . . . . . . . . . . . . . . . . . . 1 . Exploration Rate (%) 55 | 3 49 23 89 18 60 40 94 85 47 71 15 66 3 91 92 36 92 38 88 56 80 76 6 97 5 98 15 94 23 91 21 98 10 91 86 36 73 27 Regions Visited 38 Branch Regions 12 Pre-discovered Areas 9 | . . . 4 . 1 . 4 . . . . . . . . . . . . . . . . . . . . . . . . . . . . . . . Known Exits Taken 14 | . . . . . . 1 1 . 1 . . . 1 . 1 1 . 1 . . . . . . 1 . 1 . 1 . 1 . 1 1 . 1 . . Unknown Exits Taken 11 | 1 1 1 1 1 1 . . . . . . . . . . . . . 1 1 1 1 . . . . . . . . . . . . . . 1 . Scrap Searched 1 | . . . . . . 1 . . . . . . . . . . . . . . . . . . . . . . . . . . . . . . . . Spaces Dug 100 | . . . . . . . 1 5 5 2 1 . . 6 11 3 . 9 . 2 . 5 . . . . . . . . 3 . 1 2 . 3 . 41 Terrain Destroyed 598 | . . . 9 . . 14 56 31 5 24 1 . 17 6 47 48 . 42 4 3 . 188 . 4 . 6 . . 6 1 5 3 1 8 1 11 1 56 Melee 9 | . . . . . . . 1 . 5 2 1 . . . . . . . . . . . . . . . . . . . . . . . . . . . Projectile 202 | . . . . . . . . 1 . . . . 1 . 34 11 . 21 4 3 . 28 . 1 . 6 . . 5 1 5 3 1 8 1 11 1 56 AOE 387 | . . . 9 . . 14 55 30 . 22 . . 16 6 13 37 . 21 . . . 160 . 3 . . . . 1 . . . . . . . . . Terrain Rammed . | . . . . . . . . . . . . . . . . . . . . . . . . . . . . . . . . . . . . . . . Walls Destroyed . | . . . . . . . . . . . . . . . . . . . . . . . . . . . . . . . . . . . . . . . Machines Disabled . | . . . . . . . . . . . . . . . . . . . . . . . . . . . . . . . . . . . . . . . Actions | -11 -10 -10 -9 -9 -9 -8 -8 -8 -8 -8 -7 -7 -7 -7 -7 -6 -6 -6 -6 -6 -6 -6 -5 -5 -5 -5 -5 -5 -4 -4 -4 -4 -3 -3 -3 -2 -2 -2 --------- Run | Yrd Mat Min Mat Min Exi Min Mat Gar Mat Gar Fac Was Fac Gar Sto Fac Gar Fac Ext Cet Arc Hub Fac Was Fac Gar Fac Gar Fac Gar Fac Gar Res Qua Gar Res Tes Frg Total 28333 | 47 317 70 1632 79 216 173 1797 791 1096 586 666 328 214 1060 1163 857 1059 1233 1198 385 545 868 122 805 395 925 738 998 584 841 621 1015 288 908 826 1035 691 1161 Wait 3398 | . 9 . 144 . . 1 288 24 169 16 23 33 9 60 319 93 86 67 180 180 408 22 . 80 201 45 172 61 50 80 82 104 21 58 36 155 30 92 Move 20544 | 40 285 70 1246 79 206 162 1269 612 817 453 572 151 145 773 705 604 796 1013 779 170 120 702 110 663 182 571 514 747 410 657 483 728 248 736 629 767 565 765 Hop 2 | . . . . . . . . . . . . . . . . . . . . . . . . . . . . . . . . . . . . . . 2 Pick Up 310 | 2 5 . 20 . 2 1 9 9 9 10 5 6 4 28 6 7 17 7 6 4 3 7 . 13 4 20 3 14 2 12 3 27 . 10 15 6 9 5 Fast Attach 172 | 5 2 . 12 . . . 6 2 1 3 1 7 1 13 6 14 9 6 1 3 . 7 1 8 1 2 1 12 2 2 4 3 1 2 6 7 4 17 Attach 166 | . . . 3 . 2 . 5 9 1 2 2 . 6 12 4 17 7 7 3 1 1 5 3 8 . 6 2 7 4 6 2 7 2 6 3 5 3 15 Detach 88 | . . . 2 . 2 . 3 1 . 1 . 2 . 6 3 13 6 7 2 2 1 2 2 7 1 4 . 2 . 1 1 5 2 2 1 1 . 6 Swap 438 | . . . 15 . 1 2 19 20 16 19 8 12 6 16 19 15 23 22 3 3 2 22 . 3 2 3 4 14 21 10 12 23 2 12 21 24 17 27 Drop 298 | . 1 . 24 . 3 . 14 4 16 11 3 17 3 18 8 16 18 12 3 6 2 7 1 4 . 14 2 18 2 3 6 14 . 6 13 11 11 7 Fire 2153 | . 13 . 137 . . 7 176 74 56 47 41 100 34 108 87 76 70 77 35 16 8 85 5 19 4 77 37 75 86 61 24 91 10 61 86 57 45 168 Melee 75 | . . . . . . . 1 20 7 7 1 . . 20 . . . . . . . . . . . . . . . . . . . . . . . 19 Ram . | . . . . . . . . . . . . . . . . . . . . . . . . . . . . . . . . . . . . . . . Kick . | . . . . . . . . . . . . . . . . . . . . . . . . . . . . . . . . . . . . . . . Crush 96 | . 2 . 10 . . . 7 . 4 . 9 . 1 2 5 2 1 13 1 . . 7 . . . . 2 1 6 3 1 . . 9 3 2 4 1 Escape Stasis 57 | . . . . . . . . 16 . 4 . . 4 . . . . . . . . . . . . . . 16 . . . 8 . 2 7 . . . Rewire 503 | . . . 19 . . . . . . 13 1 . 1 4 1 . 26 2 185 . . 2 . . . 183 1 31 1 6 3 5 2 4 6 . 3 4 Trap 33 | . . . . . . . . . . . . . . . . . . . . . . . . . . . . . . . . . . . . . . 33 Miscellaneous . | . . . . . . . . . . . . . . . . . . . . . . . . . . . . . . . . . . . . . . . Route ------- -11/Scrapyard -10/Materials (discovered 2 exits: *Mat / [*Min]) -10/Mines -9/Materials (discovered 5 exits: *Mat x3 / [*Min x2]) -9/Mines (discovered 2 exits: *Mat / *Exi) -9/Exiles -8/Mines -8/Materials (discovered 4 exits: *Fac x3 / Gar) -8/Garrison (discovered 3 exits: *Mat x3) -8/Materials (discovered 3 exits: *Fac x2 / Gar) -8/Garrison (discovered 3 exits: *Fac x3) -7/Factory (discovered 7 exits: *Fac x4 / Sto / Low x2) -7/Waste -7/Factory (discovered 3 exits: *Fac / *Low / Gar) -7/Garrison (discovered 3 exits: *Sto x3) -7/Storage (discovered 2 exits: *Fac / Rec) -6/Factory (discovered 5 exits: [*Fac] / *Low / Ext x2 / Gar) -6/Garrison (discovered 4 exits: *Fac x4) -6/Factory (discovered 6 exits: [*Fac x2] / *Low x2 / *Ext x2) -6/Extension (discovered 2 exits: [*Fac] / *Cet) -6/Cetus (discovered 2 exits: [*Fac] / [*Arc]) -6/Archives (discovered 3 exits: [*Fac] / *Hub x2) -6/Hub_04(d) -5/Factory -5/Waste -5/Factory -5/Garrison (discovered 3 exits: *Fac x3) -5/Factory -5/Garrison (discovered 3 exits: *Fac x3) -4/Factory (discovered 2 exits: [*Arm] / Gar) -4/Garrison (discovered 3 exits: *Fac x3) -4/Factory (discovered 2 exits: *Res / Gar) -4/Garrison (discovered 3 exits: *Res x3) -3/Research (discovered 2 exits: *Qua x2) -3/Quarantine (discovered 2 exits: *Res / Gar) -3/Garrison (discovered 3 exits: *Res x3) -2/Research -2/Testing (discovered 2 exits: [*Sec] / *Frg) -2/Protoforge (discovered 1 exit: [*Acc]) History --------- Turn | Location | Event 5 | -11/Scrapyard | Discovered new exit (range 16) 69 | -11/Scrapyard | Entered Materials 210 | -10/Materials | Discovered new exit (range 5) 305 | -10/Materials | Build established: Mutant 509 | -10/Materials | Discovered new exit (range 10) 584 | -10/Materials | Entered Mines 680 | -10/Mines | Discovered new exit (range 8) 696 | -10/Mines | Entered Materials 696 | -9/Materials | Evolved 2 slots: Propulsion x1, Utility x1 1838 | -9/Materials | Build established: Scavenger-Mutant 2028 | -9/Materials | Discovered new exit (range 9) 2273 | -9/Materials | Discovered new exit (range 8) 2471 | -9/Materials | Build established: Mutant 2511 | -9/Materials | Discovered new exit (range 16) 2735 | -9/Materials | Discovered new exit (range 13) 2829 | -9/Materials | Learned location of 1 exit from Storage 2944 | -9/Materials | Identified exit to Materials 3013 | -9/Materials | Build established: Scavenger-Mutant 3062 | -9/Materials | Learned Storage stockpile data 3113 | -9/Materials | Learned location of Zion (-7) 3298 | -9/Materials | Central database locked down 3907 | -9/Materials | Repaired Shield Generator 4331 | -9/Materials | Entered Mines 4483 | -9/Mines | Discovered exit to Materials (range 3) 4509 | -9/Mines | Deemed a non-threat by the Exiles lab entrance 4511 | -9/Mines | Discovered new exit (range 5) 4521 | -9/Mines | Entered Exiles 4563 | -9/Exiles | Met 8R-AWN 4590 | -9/Exiles | Met EX-HEX 4636 | -9/Exiles | Met EX-BIN 4654 | -9/Exiles | Aligned with FarCom system 4655 | -9/Exiles | Given EX-Vault access code 4692 | -9/Exiles | Opened EX-Vault 4704 | -9/Exiles | Found Longsword +1 4709 | -9/Exiles | Found Supersonic Drone Bay 4758 | -9/Exiles | Warned to stay clear of 0b10 Research branches 4786 | -9/Exiles | Exiles lab attacked by MAIN.C 4824 | -9/Exiles | Build established: Mutant 4912 | -9/Exiles | Discovered new exit (range 10) 4933 | -9/Exiles | Stole two prototypes: Supersonic Drone Bay, Longsword +1 4933 | -9/Exiles | Entered Mines 4984 | -8/Mines | Discovered exit to Materials (range 14) 5223 | -8/Mines | Build established: Scavenger-Mutant 5346 | -8/Mines | Entered Materials 5346 | -8/Materials | Evolved 2 slots: Utility x2 6601 | -8/Materials | Build established: Mutant 7164 | -8/Materials | Garrison activated, responded to threat 7605 | -8/Materials | Repaired Shield Generator 8107 | -8/Materials | Discovered new exit (range 10) 8536 | -8/Materials | Discovered new exit (range 9) 8991 | -8/Materials | Learned 4 Recycling zone layouts 9062 | -8/Materials | Identified exit to Factory 9082 | -8/Materials | Identified exit to Garrison 9091 | -8/Materials | Learned location of 2 exits from Lower Caves 9093 | -8/Materials | Learned 4 Lower Caves zone layouts 9129 | -8/Materials | Entered Garrison 9249 | -8/Garrison | Triggered checkpoint 9342 | -8/Garrison | Triggered checkpoint 9344 | -8/Garrison | Triggered checkpoint 9352 | -8/Garrison | Triggered checkpoint 9425 | -8/Garrison | Destroyed 7 combat bots 9428 | -8/Garrison | Lost 5 parts (2n2u1w) 9551 | -8/Garrison | Spotted B-75 Beast 9617 | -8/Garrison | Destroyed B-75 Beast 9642 | -8/Garrison | Lost 4 parts (1n2u1w) 9715 | -8/Garrison | Discovered new exit (range 8) 9783 | -8/Garrison | Triggered checkpoint 9783 | -8/Garrison | Garrison Relay disabled 9878 | -8/Garrison | Build established: Scavenger-Mutant 10014 | -8/Garrison | Installed Relay Interface Framework 10202 | -8/Garrison | Garrison Relay disabled 10255 | -8/Garrison | Triggered checkpoint 10280 | -8/Garrison | Discovered new exit (range 10) 10517 | -8/Garrison | Build established: Bothacker-Mutant 10588 | -8/Garrison | Core integrity fell below 50% 10721 | -8/Garrison | Discovered new exit (range 8) 10829 | -8/Garrison | Garrison Relay disabled 10855 | -8/Garrison | Discovered new exit (range 13) 10855 | -8/Garrison | Discovered new exit (range 58) 10855 | -8/Garrison | Discovered new exit (range 63) 10938 | -8/Garrison | Entered Materials 11219 | -8/Materials | Discovered exit to Factory (range 15) 11282 | -8/Materials | Garrison activated, responded to threat 11761 | -8/Materials | Garrison activated, responded to threat 13284 | -8/Materials | Identified exit to Garrison 13284 | -8/Materials | Entered Garrison 13284 | -8/Garrison | Accompanied by 1 ally 13359 | -8/Garrison | Garrison Relay disabled 13614 | -8/Garrison | Spotted B-75 Beast 13634 | -8/Garrison | P-60 Hacker assimilated allied Administrator 3a 13708 | -8/Garrison | Triggered checkpoint 13759 | -8/Garrison | Triggered checkpoint 13761 | -8/Garrison | Triggered checkpoint 13797 | -8/Garrison | Destroyed 7 combat bots 13924 | -8/Garrison | Triggered checkpoint 14029 | -8/Garrison | Expanded RIF knowledge: Alert ID Control 14073 | -8/Garrison | Discovered exit to Factory (range 85) 14073 | -8/Garrison | Discovered exit to Factory (range 43) 14073 | -8/Garrison | Discovered exit to Factory (range 17) 14219 | -8/Garrison | Triggered checkpoint 14253 | -8/Garrison | Garrison Relay disabled 14541 | -8/Garrison | Expanded RIF knowledge: Coupler Efficiency 14585 | -8/Garrison | Entered Factory 14585 | -7/Factory | Accompanied by 3 allies 14585 | -7/Factory | Evolved 2 slots: Propulsion x1, Utility x1 14587 | -7/Factory | FarCom data flow suspended 15007 | -7/Factory | Discovered new exit (range 5) 15084 | -7/Factory | Identified exit to Storage 15084 | -7/Factory | Identified exit to Lower Caves 15084 | -7/Factory | Identified exit to Factory 15406 | -7/Factory | P-60 Hacker assimilated allied Bruiser 3a 16124 | -7/Factory | Sucked down chute 16124 | -7/Factory | Entered Waste 16139 | -7/Waste | EMP discharged 16170 | -7/Waste | Spotted C-40 Crusher 16178 | -7/Waste | Spotted C-40 Crusher 16187 | -7/Waste | Spotted C-40 Crusher 16195 | -7/Waste | Spotted C-40 Crusher 16219 | -7/Waste | Spotted C-40 Crusher 16239 | -7/Waste | EMP discharged 16239 | -7/Waste | System corruption reached 10% 16249 | -7/Waste | 2 allies followed down the chute 16265 | -7/Waste | Spotted C-40 Crusher 16327 | -7/Waste | Destroyed C-40 Crusher 16336 | -7/Waste | Found Damper Plating 16339 | -7/Waste | EMP discharged 16439 | -7/Waste | EMP discharged 16499 | -7/Waste | Destroyed C-40 Crusher 16539 | -7/Waste | EMP discharged 16625 | -7/Waste | Destroyed C-40 Crusher 16639 | -7/Waste | EMP discharged 16676 | -7/Waste | Destroyed C-40 Crusher 16733 | -7/Waste | Discovered new exit (range 16) 16739 | -7/Waste | EMP discharged 16774 | -7/Waste | Entered Factory 16834 | -7/Factory | Discovered exit to Lower Caves (range 14) 17085 | -7/Factory | Discovered exit to Factory (range 16) 17165 | -7/Factory | Garrison activated, responded to threat 17206 | -7/Factory | Identified exit to Garrison 17208 | -7/Factory | Entered Garrison 17208 | -7/Garrison | Accompanied by 1 ally 17318 | -7/Garrison | Triggered checkpoint 17359 | -7/Garrison | Garrison Relay disabled 17423 | -7/Garrison | System corruption reached 30% 17632 | -7/Garrison | Triggered checkpoint 17654 | -7/Garrison | Triggered checkpoint 17851 | -7/Garrison | Garrison Relay disabled 17906 | -7/Garrison | Garrison Relay disabled 17944 | -7/Garrison | Discovered exit to Storage (range 10) 18062 | -7/Garrison | Discovered exit to Storage (range 12) 18146 | -7/Garrison | Triggered checkpoint 18234 | -7/Garrison | Triggered checkpoint 18447 | -7/Garrison | Garrison Relay disabled 18516 | -7/Garrison | Lost 3 allies 18660 | -7/Garrison | Discovered exit to Storage (range 13) 18676 | -7/Garrison | Expanded RIF knowledge: Structural Interface 18746 | -7/Garrison | Lost 3 parts (1p1n1w) 18775 | -7/Garrison | Expanded RIF knowledge: Command Fork 18921 | -7/Garrison | Entered Storage 18921 | -7/Storage | Accompanied by 1 ally 18922 | -7/Storage | Identified exit to Recycling 18977 | -7/Storage | Build established: Botlord-Mutant 19143 | -7/Storage | Core integrity fell below 50% 19515 | -7/Storage | Repaired Broken Hvy. Treads 19782 | -7/Storage | Assisted by bots powering up and referring to "LRC-V3" 19861 | -7/Storage | Found Prototype Launcher 19861 | -7/Storage | Identified Gui. Missile Launcher 20022 | -7/Storage | Lost 3 allies 20051 | -7/Storage | Discovered exit to Factory (range 12) 20081 | -7/Storage | Lost 4 allies 20164 | -7/Storage | Build established: Bothacker-Mutant 20694 | -7/Storage | Entered Factory 20694 | -6/Factory | Accompanied by 3 allies 20694 | -6/Factory | Evolved 2 slots: Power x1, Utility x1 20695 | -6/Factory | Identified exit to Extension 20763 | -6/Factory | Fabricated M-13 Machinist (x1) 20857 | -6/Factory | Repaired Hvy. Treads 21431 | -6/Factory | Discovered new exit (range 60) 21443 | -6/Factory | Discovered new exit (range 56) 21564 | -6/Factory | Cargo convoy interrupted 21607 | -6/Factory | Destroyed 10 combat bots 21620 | -6/Factory | Found Prototype Launcher 21620 | -6/Factory | Identified Tactical Quantum Warhead 21631 | -6/Factory | Spotted B-75 Beast 21639 | -6/Factory | Found Tactical Quantum Warhead 22094 | -6/Factory | First assault squad dispatched 22165 | -6/Factory | Identified exit to Garrison 22178 | -6/Factory | Entered Garrison 22188 | -6/Garrison | Triggered checkpoint 22208 | -6/Garrison | Discovered new exit (range 6) 22312 | -6/Garrison | Garrison Relay disabled 22584 | -6/Garrison | Triggered checkpoint 22606 | -6/Garrison | Build established: Botlord-Mutant 22688 | -6/Garrison | Discovered new exit (range 14) 22783 | -6/Garrison | Triggered checkpoint 22842 | -6/Garrison | Garrison Relay disabled 23142 | -6/Garrison | Triggered checkpoint 23200 | -6/Garrison | Garrison Relay disabled 23254 | -6/Garrison | Expanded RIF knowledge: Zone Cloak 23316 | -6/Garrison | Discovered new exit (range 7) 23371 | -6/Garrison | Triggered checkpoint 23432 | -6/Garrison | Triggered checkpoint 23483 | -6/Garrison | Garrison Relay disabled 23556 | -6/Garrison | Discovered new exit (range 12) 23612 | -6/Garrison | Found Unknown Hackware 23612 | -6/Garrison | Identified Relay Coupler [Proto] 23616 | -6/Garrison | Found Relay Coupler [Proto] 23621 | -6/Garrison | Found Relay Coupler [Proto] 23626 | -6/Garrison | Found Relay Coupler [Proto] 23799 | -6/Garrison | Entered Factory 23832 | -6/Factory | Discovered new exit (range 10) 23834 | -6/Factory | Discovered new exit (range 44) 24145 | -6/Factory | Discovered new exit (range 6) 24975 | -6/Factory | Lost 3 allies 25270 | -6/Factory | Discovered new exit (range 6) 25496 | -6/Factory | Identified exit to Lower Caves 25769 | -6/Factory | Entered Extension 25769 | -6/Extension | Accompanied by 1 ally 25890 | -6/Extension | Rescued A7 25969 | -6/Extension | Rescued a captive Derelict 26195 | -6/Extension | Rescued a captive Derelict 26906 | -6/Extension | Spotted B-75 Beast 26913 | -6/Extension | Allies destroyed B-75 Beast 26930 | -6/Extension | Spotted B-75 Beast 26937 | -6/Extension | Destroyed B-75 Beast 26979 | -6/Extension | Lost 4 allies 27083 | -6/Extension | Rescued a captive Derelict 27433 | -6/Extension | Discovered new exit (range 10) 27435 | -6/Extension | Discovered new exit (range 6) 27505 | -6/Extension | Entered Cetus 27505 | -6/Cetus | Accompanied by 18 allies (A7) 27510 | -6/Cetus | Acquired a Cetus Manufacturing Module code from A7 27528 | -6/Cetus | Spotted Cetus Guard 27528 | -6/Cetus | Spotted Cetus Guard 27532 | -6/Cetus | Spotted Cetus Guard 27534 | -6/Cetus | Spotted Cetus Guard 27535 | -6/Cetus | Allies destroyed Cetus Guard 27538 | -6/Cetus | Allies destroyed Cetus Guard 27540 | -6/Cetus | Allies destroyed Cetus Guard 27547 | -6/Cetus | Allies destroyed Cetus Guard 27695 | -6/Cetus | Started Cetus Manufacturing Module 27720 | -6/Cetus | Manufactured an Enhanced Grunt 27727 | -6/Cetus | Discovered new exit (range 15) 27745 | -6/Cetus | Manufactured an Enhanced Grunt 27770 | -6/Cetus | Manufactured an Enhanced Grunt 27781 | -6/Cetus | Spotted Cetus Guard 27781 | -6/Cetus | Spotted Cetus Guard 27785 | -6/Cetus | Spotted Cetus Guard 27787 | -6/Cetus | Destroyed Cetus Guard 27789 | -6/Cetus | Allies destroyed Cetus Guard 27789 | -6/Cetus | Spotted Cetus Guard 27791 | -6/Cetus | Allies destroyed Cetus Guard 27795 | -6/Cetus | Manufactured an Enhanced Grunt 27800 | -6/Cetus | Allies destroyed Cetus Guard 27810 | -6/Cetus | Discovered new exit (range 15) 27818 | -6/Cetus | Met Revision 17 27820 | -6/Cetus | Manufactured an Enhanced Grunt 28018 | -6/Cetus | Entered Archives 28018 | -6/Archives | Accompanied by 21 allies (A7) 28072 | -6/Archives | Lost 3 allies 28072 | -6/Archives | Discovered new exit (range 16) 28090 | -6/Archives | Discovered new exit (range 15) 28117 | -6/Archives | Discovered new exit (range 15) 28649 | -6/Archives | Entered Hub_04(d) 28649 | -6/Hub_04(d) | Accompanied by 17 allies 28869 | -6/Hub_04(d) | Discovered new exit (range 13) 29305 | -6/Hub_04(d) | Lost 3 allies 29371 | -6/Hub_04(d) | Lost 4 allies 29727 | -6/Hub_04(d) | Network Hub disabled 29745 | -6/Hub_04(d) | Spotted Lightning 29763 | -6/Hub_04(d) | Spotted Lightning 29766 | -6/Hub_04(d) | Spotted Lightning 29769 | -6/Hub_04(d) | Assimilated Lightning with formatsys_high 29772 | -6/Hub_04(d) | Assimilated Lightning with formatsys_high 29782 | -6/Hub_04(d) | Spotted Lightning 29785 | -6/Hub_04(d) | Spotted Lightning 29786 | -6/Hub_04(d) | Spotted Lightning 29793 | -6/Hub_04(d) | Assimilated Lightning with formatsys_high 29807 | -6/Hub_04(d) | Network Hub disabled 29807 | -6/Hub_04(d) | Network Hub disabled 29828 | -6/Hub_04(d) | Destroyed Lightning 29831 | -6/Hub_04(d) | Core integrity fell below 50% 29848 | -6/Hub_04(d) | Destroyed Lightning 29875 | -6/Hub_04(d) | Destroyed Lightning 29880 | -6/Hub_04(d) | Found Prototype Processor 29896 | -6/Hub_04(d) | Found Prototype Device 29896 | -6/Hub_04(d) | Identified Exp. EM Shield 29912 | -6/Hub_04(d) | Identified Exp. Targeting Computer 29920 | -6/Hub_04(d) | Found Exp. Targeting Computer 29952 | -6/Hub_04(d) | System corruption reached 10% 30189 | -6/Hub_04(d) | Entered Factory 30189 | -5/Factory | Accompanied by 3 allies 30189 | -5/Factory | Evolved 2 slots: Utility x2 30369 | -5/Factory | Spotted B-75 Beast 30386 | -5/Factory | Allies destroyed B-75 Beast 30467 | -5/Factory | Sucked down chute 30467 | -5/Factory | Entered Waste 30493 | -5/Waste | Spotted C-40 Crusher 30498 | -5/Waste | Spotted C-40 Crusher 30514 | -5/Waste | Destroyed C-40 Crusher 30515 | -5/Waste | Spotted C-40 Crusher 30527 | -5/Waste | Spotted C-40 Crusher 30540 | -5/Waste | Crushed by Compactor (1 part destroyed, 2 dropped) 30543 | -5/Waste | Crushed by Compactor (0 parts destroyed, 1 dropped) 30544 | -5/Waste | Destroyed Lightning 30546 | -5/Waste | Crushed by Compactor (0 parts destroyed, 2 dropped) 30548 | -5/Waste | Crushed by Compactor (0 parts destroyed, 1 dropped) 30549 | -5/Waste | Crushed by Compactor (1 part destroyed) 30551 | -5/Waste | Crushed by Compactor (0 parts destroyed, 1 dropped) 30557 | -5/Waste | 5 allies followed down the chute 30558 | -5/Waste | Crushed by Compactor (0 parts destroyed, 1 dropped) 30564 | -5/Waste | Spotted C-40 Crusher 30578 | -5/Waste | Crushed by Compactor (0 parts destroyed, 1 dropped) 30580 | -5/Waste | Lost 3 parts (1p1u1w) 30602 | -5/Waste | Lost 3 allies 30647 | -5/Waste | Spotted C-40 Crusher 30747 | -5/Waste | Discovered new exit (range 16) 30783 | -5/Waste | Warlord forces began an assault 30796 | -5/Waste | Allies destroyed C-40 Crusher 30806 | -5/Waste | Allies destroyed C-40 Crusher 30809 | -5/Waste | Allies destroyed C-40 Crusher 30811 | -5/Waste | Allies destroyed C-40 Crusher 30813 | -5/Waste | Allies destroyed C-40 Crusher 30844 | -5/Waste | Lost 10 allies 31380 | -5/Waste | Entered Factory 31380 | -5/Factory | Accompanied by 8 allies 31458 | -5/Factory | Fabricated M-13 Machinist? 31511 | -5/Factory | Build established: Bothacker-Mutant 31528 | -5/Factory | Lost 3 allies 31714 | -5/Factory | Identified exit to Garrison 31910 | -5/Factory | Entered Garrison 31910 | -5/Garrison | Accompanied by 5 allies 31972 | -5/Garrison | Lost 4 allies 32224 | -5/Garrison | Triggered checkpoint 32277 | -5/Garrison | Garrison Relay disabled 32350 | -5/Garrison | Triggered checkpoint 32352 | -5/Garrison | Triggered checkpoint 32410 | -5/Garrison | Triggered checkpoint 32433 | -5/Garrison | Lost 5 allies 32456 | -5/Garrison | Build established: Botlord-Mutant 32485 | -5/Garrison | Found embedded Infiltrators 32554 | -5/Garrison | Discovered new exit (range 10) 32586 | -5/Garrison | Expanded RIF knowledge: Signal Jamming 32588 | -5/Garrison | Triggered checkpoint 32590 | -5/Garrison | Triggered checkpoint 32619 | -5/Garrison | Garrison Relay disabled 32650 | -5/Garrison | Garrison Relay disabled 32652 | -5/Garrison | Lost 3 allies 32861 | -5/Garrison | Discovered new exit (range 10) 32872 | -5/Garrison | Triggered checkpoint 32896 | -5/Garrison | Garrison Relay disabled 32996 | -5/Garrison | Triggered checkpoint 33060 | -5/Garrison | Garrison Relay disabled 33086 | -5/Garrison | Triggered checkpoint 33126 | -5/Garrison | Discovered new exit (range 10) 33147 | -5/Garrison | Spotted B-86 Titan 33161 | -5/Garrison | Allies destroyed B-86 Titan 33302 | -5/Garrison | Entered Factory 33302 | -5/Factory | Accompanied by 8 allies 33317 | -5/Factory | Identified exit to Garrison 33405 | -5/Factory | Garrison activated, responded to threat 33406 | -5/Factory | P-80 Master assimilated allied 87-I9L(x) 34129 | -5/Factory | Lost 3 allies 34265 | -5/Factory | Fabricated M-13 Machinist (x1) 34403 | -5/Factory | Entered Garrison 34403 | -5/Garrison | Accompanied by 9 allies 34447 | -5/Garrison | Triggered checkpoint 34468 | -5/Garrison | Garrison Relay disabled 34505 | -5/Garrison | H-XX Assembler disabled 34740 | -5/Garrison | Lost 4 allies 34869 | -5/Garrison | Triggered checkpoint 34870 | -5/Garrison | Spotted B-75 Beast 34873 | -5/Garrison | Assimilated Beast 6a with formatsys_high 34899 | -5/Garrison | Triggered checkpoint 34952 | -5/Garrison | P-70 Sage assimilated allied Sentinel 6d 34954 | -5/Garrison | P-70 Sage assimilated allied Sentinel 6b 34956 | -5/Garrison | P-70 Sage assimilated allied Conveyor 6a 34994 | -5/Garrison | Lost 3 allies 35009 | -5/Garrison | Triggered checkpoint 35034 | -5/Garrison | Expanded RIF knowledge: Crosswire 35059 | -5/Garrison | Garrison Relay disabled 35129 | -5/Garrison | Triggered checkpoint 35137 | -5/Garrison | Discovered new exit (range 12) 35607 | -5/Garrison | Lost 6 allies 35648 | -5/Garrison | Discovered new exit (range 11) 35689 | -5/Garrison | Triggered checkpoint 35729 | -5/Garrison | Garrison Relay disabled 35871 | -5/Garrison | Triggered checkpoint 35945 | -5/Garrison | Triggered checkpoint 35991 | -5/Garrison | Garrison Relay disabled 36177 | -5/Garrison | Discovered new exit (range 13) 36213 | -5/Garrison | Rewired Striker 36218 | -5/Garrison | Rewired Striker 36432 | -5/Garrison | Entered Factory 36432 | -4/Factory | Accompanied by 19 allies 36432 | -4/Factory | Evolved 2 slots: Propulsion x1, Utility x1 36489 | -4/Factory | Fabricated M-13 Machinist (x1) 36716 | -4/Factory | Spotted B-86 Titan 36739 | -4/Factory | Allies destroyed B-86 Titan 36754 | -4/Factory | P-70 Sage assimilated allied Slayer 6f 37036 | -4/Factory | Lost 9 allies 37093 | -4/Factory | Allies destroyed Striker 37127 | -4/Factory | P-70 Sage assimilated allied L-61 Swordsman 37168 | -4/Factory | Lost 4 allies 37212 | -4/Factory | Discovered new exit (range 12) 37296 | -4/Factory | Spotted B-86 Titan 37304 | -4/Factory | Assimilated Titan 7a with formatsys_high 37331 | -4/Factory | Garrison activated, responded to threat 37344 | -4/Factory | Cargo convoy interrupted 37363 | -4/Factory | Identified exit to Garrison 37363 | -4/Factory | Entered Garrison 37390 | -4/Garrison | Lost 3 allies 37420 | -4/Garrison | Expanded RIF knowledge: Zone Cloak 37443 | -4/Garrison | Triggered checkpoint 37493 | -4/Garrison | Garrison Relay disabled 37556 | -4/Garrison | Expanded RIF knowledge: Watcher Feeds 37741 | -4/Garrison | Triggered checkpoint 37748 | -4/Garrison | Triggered checkpoint 37758 | -4/Garrison | Triggered checkpoint 37765 | -4/Garrison | P-70 Sage assimilated allied Sentinel 7c 37777 | -4/Garrison | Triggered checkpoint 37824 | -4/Garrison | Triggered checkpoint 37843 | -4/Garrison | Garrison Relay disabled 37885 | -4/Garrison | Spotted B-86 Titan 37904 | -4/Garrison | Assimilated Titan 7b with formatsys_high 37919 | -4/Garrison | Found Relay Coupler [Proto] 37921 | -4/Garrison | Found Relay Coupler [Proto] 37925 | -4/Garrison | Found Relay Coupler [Proto] 37927 | -4/Garrison | Found Relay Coupler [Proto] 37989 | -4/Garrison | Discovered new exit (range 14) 38101 | -4/Garrison | Triggered checkpoint 38160 | -4/Garrison | Lost 6 allies 38214 | -4/Garrison | Discovered new exit (range 2) 38323 | -4/Garrison | Garrison Relay disabled 38337 | -4/Garrison | Found embedded Infiltrators 38465 | -4/Garrison | Triggered checkpoint 38525 | -4/Garrison | Garrison Relay disabled 38565 | -4/Garrison | Triggered checkpoint 38593 | -4/Garrison | Discovered new exit (range 69) 38593 | -4/Garrison | Discovered new exit (range 51) 38593 | -4/Garrison | Discovered new exit (range 12) 38680 | -4/Garrison | Entered Factory 38680 | -4/Factory | Accompanied by 11 allies 38836 | -4/Factory | Spotted B-86 Titan 38846 | -4/Factory | Destroyed B-86 Titan 39242 | -4/Factory | Discovered new exit (range 15) 39293 | -4/Factory | P-70 Sage assimilated allied Veteran 7b 39508 | -4/Factory | Garrison activated, responded to threat 39593 | -4/Factory | Fabricated M-13 Machinist (x1) 39627 | -4/Factory | Identified exit to Garrison 39630 | -4/Factory | Entered Garrison 39630 | -4/Garrison | Accompanied by 7 allies 39689 | -4/Garrison | Garrison Relay disabled 39728 | -4/Garrison | Triggered checkpoint 39805 | -4/Garrison | Spotted B-86 Titan 39858 | -4/Garrison | Triggered checkpoint 39859 | -4/Garrison | Allies destroyed B-86 Titan 39925 | -4/Garrison | Triggered checkpoint 39930 | -4/Garrison | Lost 5 allies 39946 | -4/Garrison | Triggered checkpoint 40094 | -4/Garrison | Rescued a captive Derelict 40108 | -4/Garrison | Triggered checkpoint 40166 | -4/Garrison | Lost 3 allies 40233 | -4/Garrison | Garrison Relay disabled 40348 | -4/Garrison | Discovered new exit (range 12) 40414 | -4/Garrison | Spotted B-86 Titan 40434 | -4/Garrison | Allies destroyed B-86 Titan 40454 | -4/Garrison | Found Relay Coupler [Proto] 40458 | -4/Garrison | Found Relay Coupler [Proto] 40461 | -4/Garrison | Found Relay Coupler [Proto] 40467 | -4/Garrison | Found Relay Coupler [Proto] 40886 | -4/Garrison | Discovered new exit (range 11) 40924 | -4/Garrison | Triggered checkpoint 40936 | -4/Garrison | Garrison Relay disabled 41224 | -4/Garrison | Triggered checkpoint 41273 | -4/Garrison | Expanded RIF knowledge: Coupler Efficiency 41294 | -4/Garrison | Garrison Relay disabled 41438 | -4/Garrison | Garrison Relay disabled 41452 | -4/Garrison | Triggered checkpoint 41494 | -4/Garrison | Discovered new exit (range 2) 41570 | -4/Garrison | Entered Research 41570 | -3/Research | Accompanied by 9 allies 41570 | -3/Research | Evolved 2 slots: Propulsion x1, Utility x1 41770 | -3/Research | Revision forces began assault on 0b10 41810 | -3/Research | Met up with Revision 17++ 41940 | -3/Research | Identified exit to Quarantine 42203 | -3/Research | Entered Quarantine 42203 | -3/Quarantine | Accompanied by 3 allies 42404 | -3/Quarantine | Found Alien Artifact 42549 | -3/Quarantine | Identified Subatomic Replicator 42605 | -3/Quarantine | Garrison activated, responded to threat 42700 | -3/Quarantine | Discovered new exit (range 31) 42705 | -3/Quarantine | P-80 Master assimilated allied Swordsman 8a 42933 | -3/Quarantine | Found Core Cannon 43389 | -3/Quarantine | Found Exp. Focal Shield 43657 | -3/Quarantine | Found Alien Artifact 44121 | -3/Quarantine | Identified exit to Garrison 44162 | -3/Quarantine | Entered Garrison 44162 | -3/Garrison | Accompanied by 6 allies 44176 | -3/Garrison | Discovered new exit (range 53) 44176 | -3/Garrison | Discovered new exit (range 80) 44176 | -3/Garrison | Discovered new exit (range 67) 44240 | -3/Garrison | Triggered checkpoint 44306 | -3/Garrison | Lost 3 allies 44318 | -3/Garrison | Garrison Relay disabled 44361 | -3/Garrison | Triggered checkpoint 44462 | -3/Garrison | Spotted B-86 Titan 44488 | -3/Garrison | P-80 Master assimilated allied Enforcer 8a 44521 | -3/Garrison | Destroyed B-86 Titan 44544 | -3/Garrison | Triggered checkpoint 44564 | -3/Garrison | Triggered checkpoint 44570 | -3/Garrison | Triggered checkpoint 44631 | -3/Garrison | Lost 3 allies 44692 | -3/Garrison | Triggered checkpoint 44698 | -3/Garrison | Garrison Relay disabled 44735 | -3/Garrison | Lost 4 allies 44794 | -3/Garrison | Rewired Executioner 44798 | -3/Garrison | Rewired Executioner 45006 | -3/Garrison | Expanded RIF knowledge: Autoassimilate 45032 | -3/Garrison | Triggered checkpoint 45043 | -3/Garrison | Garrison Relay disabled 45123 | -3/Garrison | Triggered checkpoint 45392 | -3/Garrison | Triggered checkpoint 45426 | -3/Garrison | Garrison Relay disabled 45535 | -3/Garrison | Spotted B-86 Titan 45556 | -3/Garrison | P-80 Master assimilated allied Assassin 8e 45562 | -3/Garrison | Allies destroyed B-86 Titan 45579 | -3/Garrison | Found Relay Coupler [Proto] 45584 | -3/Garrison | Found Relay Coupler [Proto] 45597 | -3/Garrison | Lost 6 allies 45604 | -3/Garrison | Found Relay Coupler [Proto] 45619 | -3/Garrison | Found Relay Coupler [Proto] 45821 | -3/Garrison | System corruption reached 10% 45821 | -3/Garrison | Entered Research 45821 | -2/Research | Accompanied by 10 allies 45821 | -2/Research | Evolved 2 slots: Power x1, Utility x1 45954 | -2/Research | Lost 3 allies 46117 | -2/Research | Lost 5 allies 46200 | -2/Research | Fabricated M-13 Machinist (x1) 47332 | -2/Research | Garrison activated, responded to threat 47368 | -2/Research | Discovered new exit (range 12) 47380 | -2/Research | Lost 8 allies 47459 | -2/Research | P-80 Master assimilated allied Warden 9b 47474 | -2/Research | P-80 Master assimilated allied Veteran 8f 47508 | -2/Research | Lost 3 allies 47565 | -2/Research | Identified exit to Testing 47959 | -2/Research | Entered Testing 47959 | -2/Testing | Accompanied by 1 ally 48244 | -2/Testing | Spotted Striker 48371 | -2/Testing | Crushed by falling debris 48371 | -2/Testing | System corruption reached 10% 48440 | -2/Testing | Found Hyp. EM Gauss Rifle 48484 | -2/Testing | P-80 Master assimilated allied Expert 9a 48684 | -2/Testing | Found Prototype Device 48700 | -2/Testing | Identified 2N-1CE's Frost Array 48830 | -2/Testing | Found Corrupted Unknown Device 48996 | -2/Testing | Found Prototype Hackware 49031 | -2/Testing | Spotted PH-ITPY5Q5D3K 49035 | -2/Testing | Assimilated PH-ITPY5Q5D3K with formatsys_high 49222 | -2/Testing | Spotted Fortress 49226 | -2/Testing | Assimilated Fortress with formatsys_high 49409 | -2/Testing | Discovered new exit (range 6) 49409 | -2/Testing | Discovered new exit (range 6) 49427 | -2/Testing | Entered Protoforge 49427 | -2/Protoforge | Accompanied by 2 allies 49453 | -2/Protoforge | Spotted Hotshot 49453 | -2/Protoforge | Spotted Hotshot 49453 | -2/Protoforge | Spotted Hotshot 49453 | -2/Protoforge | Spotted Hotshot 49453 | -2/Protoforge | Spotted Hotshot 49454 | -2/Protoforge | Autoassimilated Hotshot with RIF 49454 | -2/Protoforge | Autoassimilated Hotshot with RIF 49455 | -2/Protoforge | Superfortress began startup sequence 49478 | -2/Protoforge | Allies destroyed Hotshot 49479 | -2/Protoforge | Destroyed Hotshot 49486 | -2/Protoforge | Destroyed Hotshot 49543 | -2/Protoforge | Spotted Hotshot 49545 | -2/Protoforge | Spotted Hotshot 49545 | -2/Protoforge | Spotted Hotshot 49549 | -2/Protoforge | Spotted Hotshot 49549 | -2/Protoforge | Spotted Hotshot 49565 | -2/Protoforge | Allies destroyed Hotshot 49570 | -2/Protoforge | Allies destroyed Hotshot 49573 | -2/Protoforge | Allies destroyed Hotshot 49574 | -2/Protoforge | Allies destroyed Hotshot 49709 | -2/Protoforge | Spotted Hotshot 49709 | -2/Protoforge | Spotted Hotshot 49717 | -2/Protoforge | Allies destroyed Hotshot 49719 | -2/Protoforge | Allies destroyed Hotshot 49723 | -2/Protoforge | Spotted Hotshot 49729 | -2/Protoforge | Allies destroyed Hotshot 49787 | -2/Protoforge | Discovered new exit (range 5) 49989 | -2/Protoforge | Spotted Overlord 50081 | -2/Protoforge | Allies destroyed Overlord 50098 | -2/Protoforge | Found Exp. Force Field 50513 | -2/Protoforge | Additional patrols dispatched to research labs 50584 | -2/Protoforge | Found Prototype Device 50606 | -2/Protoforge | Spotted Immortal 50666 | -2/Protoforge | Spotted Immortal 50670 | -2/Protoforge | Spotted Decapitator 50670 | -2/Protoforge | Spotted Decapitator 50670 | -2/Protoforge | Spotted Decapitator 50670 | -2/Protoforge | Spotted Decapitator 50679 | -2/Protoforge | Assimilated Immortal with formatsys_high 50688 | -2/Protoforge | Assimilated Immortal with formatsys_high 50727 | -2/Protoforge | Identified Quantum Capacitor 50727 | -2/Protoforge | Identified Crosscalibrator 50727 | -2/Protoforge | Identified System Mapper 50752 | -2/Protoforge | Found Cep. Network Penetrator 50762 | -2/Protoforge | Found Cep. Network Penetrator 50841 | -2/Protoforge | Destroyed Decapitator 50863 | -2/Protoforge | Destroyed Decapitator 50868 | -2/Protoforge | Destroyed Decapitator 50883 | -2/Protoforge | Destroyed Decapitator 50955 | -2/Protoforge | Spotted V921-x 50960 | -2/Protoforge | Destroyed V921-x 50977 | -2/Protoforge | Found Cep. Chromion Battery 51023 | -2/Protoforge | Found Prototype Device 51023 | -2/Protoforge | Identified Adv. Particle Accelerator 51050 | -2/Protoforge | Found Cep. Antigrav Storage Unit 51157 | -2/Protoforge | P-80 Master assimilated allied Expert 9c 51244 | -2/Protoforge | Spotted V895-m 51246 | -2/Protoforge | Spotted V547-a 51246 | -2/Protoforge | Spotted V850-u 51247 | -2/Protoforge | Spotted V144-s 51256 | -2/Protoforge | Allies destroyed V895-m 51286 | -2/Protoforge | Destroyed V547-a 51304 | -2/Protoforge | Lost 5 allies 51312 | -2/Protoforge | Spotted V375-y 51316 | -2/Protoforge | Spotted Decapitator 51317 | -2/Protoforge | Autoassimilated Decapitator with RIF 51331 | -2/Protoforge | Garrison activated, responded to threat 51367 | -2/Protoforge | System corruption reached 30% 51369 | -2/Protoforge | Spotted Decapitator 51374 | -2/Protoforge | Found Exp. Terror Saw 51376 | -2/Protoforge | Found Exp. Terror Saw 51392 | -2/Protoforge | Lost 17 parts (3p2n6u6w) 51411 | -2/Protoforge | Core integrity fell below 50% 51427 | -2/Protoforge | Spotted Decapitator 51466 | -2/Protoforge | Core integrity fell below 20% 51475 | -2/Protoforge | Spotted Decapitator 51483 | -2/Protoforge | Destroyed by Decapitator with Experimental Terror Saw Last Messages --------------- 51452_ Slug penetrates Enforcer 9g. 51452_ Enforcer 9g knocked back. 51452_ Enforcer 9g Myomer Leg blasted off. 51452_ Enforcer 9g destroyed. 51453_ K-01 Serf collects debris. 51455_ Acquired Corrupted Prototype Slashing Weapon. 51455_ Identified Molecular Scythe. 51455_ Integrated Corrupted Molecular Scythe (+5). 51456_ Sneak attack on K-01 Serf. 51456_ K-01 Serf destroyed. 51457_ Acquired 10 matter. 51462_ Relay Coupler [Sentry] destroyed. 51466_ 0KKAF AEFOBCX8NC7NK&N1PN:S R0ISMUAUHUS 51467_ Acquired 9 matter. 51468_ Molecular Scythe destroyed. 51468_ Cep. Chromion Battery destroyed. 51469_ Acquired 1 matter. 51480_ Acquired Relay Coupler [Proto]. 51481_ System corrupted: Energy discharge (-29). 51482_ Acquired Relay Coupler [Proto]. Map ----- +----------------------------------------------------+ | #########????????????????????????????????????????? | | """"""""#????????????????????????????????????????? | | ! "#????????????????????????????????????????? | | ! "#????????????????????????????????????????? | | " """"##?????????????????????????????????????????? | | "????????????????#""" ????????????????????? | | ""#???????????? " ??????????????????? | | "????????????? " #?????????????????? | | ""#????????? ??????????????????? | | #????????? ??????????????????? | | ##???????? ??????????????????? | | "#???????"" " ??????????????????? | | "" "#??????#""" ???????????????????? | | "" "#???????"" ???????????????????? | | """" "#???????? ????????????????????? | | #"""""""#????????? ????????????????????? | | # #######??????????## #????????????????????? | | ## #????????????????#" #????????????????????? | | ?# #????????????????# #????????????????????? | | ?#^ #????????????????#= #????????????????????? | | ?# #????????????????#! #????????????????????? | | ?# #????????????????# #????????????????????? | | ?# ###??????????????# %! !#????????????????????? | | ?# "#??????????????#" !% !#????????????????????? | | ?# "#??????????????#"== !!#????????????????????? | | ?# "#??????????????#"==@!%#????????????????????? | | ?# "#??????????????#""=!c!#????????????????????? | | ?# ###??????????????#####!c#????????????????????? | | ?# #????????????????????#!c#????????????????????? | | ?# #????????????????????#!!#????????????????????? | | ?# ^#????????????????????#]]#????????????????????? | | ?# #????????????????????# #????????????????????? | | ?# #????????????????????# #????????????????????? | | ## ###################### ####################?? | | ! % % [[% ? | | !% % ==%% ? | | *=!% %% % % ? | | #############++###########"####### ######## ???? | | ?????????# "%[==/=##?????# #?????? #????????? | | ?????????# %=[ %/ ##?????# #??????? #????????? | | ?????????# !!%!! ##?????# #??????? " #????????? | | ?????????#" %=!! ##?????# #????????" #????????? | | ?????????# T" ###?????# #????????"" #????????? | | ?????????#" "" ##?????# #????????? #????????? | | ?????????#" """" ##?????# #?????????####????????? | | ?????????#""""""" ##?????# ??????????????????????? | | ?????????###########?????? ??????????????????????? | | ????????????????# #?????? ??????????????????????? | | ????????????????# #??????#??????????????????????? | | ????????????????# #?????????????????????????????? | +----------------------------------------------------+ Best States ------------- Heat Dissipation 180 Coolant Potential 100 Energy Generation 77 Energy Capacity 1650 Matter Stores 300 Matter Capacity 300 Sight Range 16 Terrain Scan Density 10 Base Temperature (-) 100 Armor Coverage 1600 Resistance: KI 30 Resistance: EM 90 Point Defense Rating 240 Evasion (%) 65 Targeting Accuracy 12 Recoil Reduction 6 Matter Filtering 50 Energy Filtering 50 Particle Charging 25 Offensive Hacking 50 Relay Coupler Types 8 Relay Coupler Value 144 Authchip Count 1 Item Schematics ----------------- Imp. Utility Shielding | -8/Materials | Scanalyzed Remote Datajack | -8/Materials | Scanalyzed Hvy. Neutron Cannon | -3/Quarantine | Archive Cld. Field Propulsion Drive | -3/Quarantine | Archive Gravity Flail | -3/Quarantine | Archive Electron Diverter | -2/Testing | Archive Enh. Gamma Bomb Array | -2/Testing | Archive Cld. Nuclear Pulse Thruster | -2/Testing | Archive Enh. Biometal Leg | -2/Protoforge | Archive Exp. Melee Analysis Suite | -2/Protoforge | Archive Imp. Lightning Gun | -2/Protoforge | Archive Adv. Variable Charge Gun | -2/Protoforge | Archive Exp. Thermal Generator | -2/Protoforge | Archive Imp. Quantum Reactor | -2/Protoforge | Archive Robot Schematics ------------------ M-13 Machinist | -10/Materials | Hacked P-60 Hacker | -3/Quarantine | Hacked K-01 Serf | -3/Quarantine | Archive R-06 Scavenger | -3/Quarantine | Archive H-88 Terminator | -2/Testing | Archive R-10 Processor | -2/Testing | Archive E-15 Imp | -2/Testing | Archive Fabricated ------------ M-13 Machinist | x1 | -6/Factory M-13 Machinist | x1 | -5/Factory M-13 Machinist | x1 | -5/Factory M-13 Machinist | x1 | -4/Factory M-13 Machinist | x1 | -4/Factory | Authchip M-13 Machinist | x1 | -2/Research Repaired ---------- Shield Generator | 30% | -9/Materials Shield Generator | 6% | -8/Materials Hvy. Treads | 50% | -7/Storage | Broken Hvy. Treads | 67% | -6/Factory Alien Tech Used ----------------- Core Cannon Achievements -------------- None Challenges ------------ None Game ------ Seed EnhancedMatterReconfigurator Manual? 0 Play Time 05:36:35 Cumulative 728.1 hours Start 2025.06.11 @ 07:36:43 End 2025.07.14 @ 10:43:43 Sessions 31 Manual Loads 0 Difficulty Rogue Special Mode None Game No. 378 Rogue 378 Adventurer 0 Explorer 0 Win Type - Total 58 Types 39/4/5/2/1/1/3/1/1/1 Lore% 92 Gallery% 85 Achievement% 91 Wizard Run 0 Options --------- Layout 0 ASCII 0 Keyboard 1 Movement Numpad Keybinds 0 Fullscreen 2 Font 18/SmallcapsGlow Map View 76x50 Zoom Use 0% Tactical HUD 1 Map Filters NONE Filters NONE Steam 1 RUN: 27d20888-2a60-4e17-86d7-ae078be1247e